Workbook

Sheet TOTAL FUNCFAC
A1: PacifiCorp
A2: 12 Months Ended December 2015
A3: FUNCTIONAL FACTORS
A6: Function | B6: Description | C6: Production | D6: Transmission | E6: DPW | F6: CUST | G6: DMSC | H6: Total
A7: ACCMDIT | B7: Deferred Income Tax | C7: =ACCUMDIT!D50 -> 0.5093122663 | D7: =ACCUMDIT!E50 -> 0.2546957226 | E7: =ACCUMDIT!F50 -> 0.2350913856 | F7: =ACCUMDIT!G50 -> 0.0009006253824 | G7: =ACCUMDIT!H50 -> 0 | H7: 1
A8: BOOKDEPR | B8: Book Depreciation | C8: =BOOKDPR!C13 -> 0.6213780629 | D8: =BOOKDPR!D13 -> 0.157474814 | E8: =BOOKDPR!E13 -> 0.2193097828 | F8: =BOOKDPR!F13 -> 0.00183734019 | G8: =BOOKDPR!G13 -> 0 | H8: =ROUND(SUM(C8:G8),4) -> 1
A9: COM_EQ | B9: Communication Equipment Acct 397 | C9: 0 | D9: 0 | E9: 0 | F9: 0 | G9: 0 | H9: 0
A10: CUST | B10: Distribution Retail | C10: 0 | D10: 0 | E10: 0 | F10: 1 | G10: 0 | H10: 1
A11: DDS2 | B11: Deferred Debits - Situs | C11: =DDS!F34 -> 0.9682547079 | D11: =DDS!G34 -> -0.003994946647 | E11: =DDS!H34 -> -0.01654473608 | F11: =DDS!I34 -> 0.051831961 | G11: =DDS!J34 -> 0.0004530138533 | H11: 1
A12: DDS6 | B12: Deferred Debits - Situs | C12: 0 | D12: 0 | E12: 0 | F12: 0 | G12: 0 | H12: 0
A13: DDSO2 | B13: Deferred Debits - System Overhead | C13: =DDS!F33 -> 0.4538944079 | D13: =DDS!G33 -> 0.07892750119 | E13: =DDS!H33 -> 0.327900227 | F13: =DDS!I33 -> 0.1314850897 | G13: =DDS!J33 -> 0.007792774173 | H13: 1
A14: DDSO6 | B14: Deferred Debits - System Overhead | C14: =IF(DDS!F54=0,0,DDS!F54) -> 0 | D14: =DDS!G54 -> 0 | E14: =DDS!H54 -> 0 | F14: =DDS!I54 -> 0 | G14: =DDS!J54 -> 1 | H14: 1
A15: DEFSG | B15: Deferred Debit - System Generation | C15: =DDS!F53 -> 0.78178303 | D15: =DDS!G53 -> 0.21821697 | E15: =DDS!H53 -> 0 | F15: =DDS!I53 -> 0 | G15: =DDS!J53 -> 0 | H15: 1
A16: DMSC | B16: Distribution Miscellaneous | C16: 0 | D16: 0 | E16: 0 | F16: 0 | G16: 1 | H16: 1
A17: DPW | B17: Distribution Poles & Wires | C17: ='FORM 1'!C15 -> 0 | D17: ='FORM 1'!D15 -> 0 | E17: ='FORM 1'!E15 -> 1 | F17: ='FORM 1'!F15 -> 0 | G17: ='FORM 1'!G15 -> 0 | H17: 1
A18: ESD | B18: Environmental Services Department | C18: 0.3 | D18: 0.1 | E18: 0.6 | F18: 0 | G18: 0 | H18: 1
A19: FERC | B19: FERC Fees | C19: ='FORM 1'!C39 -> 0.512256812 | D19: ='FORM 1'!D39 -> 0.487743188 | E19: ='FORM 1'!E39 -> 0 | F19: ='FORM 1'!F39 -> 0 | G19: ='FORM 1'!G39 -> 0 | H19: 1
A20: G | B20: General Plant | C20: ='GENERAL PLANT'!E38 -> 0.2203833051 | D20: ='GENERAL PLANT'!F38 -> 0.339993511 | E20: ='GENERAL PLANT'!G38 -> 0.4223969714 | F20: ='GENERAL PLANT'!H38 -> 0.0172262126 | G20: ='GENERAL PLANT'!I38 -> 0 | H20: 1
A21: G-DGP | B21: General Plant - DGP Factor | C21: =+C70 -> 0.6779278634 | D21: =+D70 -> 0.3220721366 | E21: =+E70 -> 0 | F21: =+F70 -> 0 | G21: =+G70 -> 0 | H21: 1
A22: G-DGU | B22: General Plant - DGU Factor | C22: =+C21 -> 0.6779278634 | D22: =+D21 -> 0.3220721366 | E22: =+E21 -> 0 | F22: =+F21 -> 0 | G22: =+G21 -> 0 | H22: 1
A23: GP | B23: Total Plant | C23: ='GROSS PLANT'!E42 -> 0.4878398213 | D23: ='GROSS PLANT'!F42 -> 0.243076422 | E23: ='GROSS PLANT'!G42 -> 0.2632084635 | F23: ='GROSS PLANT'!H42 -> 0.005875293149 | G23: ='GROSS PLANT'!I42 -> 0 | H23: 1
A24: G-SG | B24: General Plant - SG Factor | C24: ='GENERAL PLANT'!E34 -> 0.4420384633 | D24: ='GENERAL PLANT'!F34 -> 0.5579615367 | E24: ='GENERAL PLANT'!G34 -> 0 | F24: ='GENERAL PLANT'!H34 -> 0 | G24: ='GENERAL PLANT'!I34 -> 0 | H24: 1
A25: G-SITUS | B25: General Plant - SITUS Factor | C25: ='GENERAL PLANT'!E36 -> 0 | D25: ='GENERAL PLANT'!F36 -> 0.2964371063 | E25: ='GENERAL PLANT'!G36 -> 0.7035628937 | F25: ='GENERAL PLANT'!H36 -> 0 | G25: ='GENERAL PLANT'!I36 -> 0 | H25: 1
A26: I | B26: Intangible Plant | C26: ='INTANGIBLE PLANT'!D35 -> 0.5193200392 | D26: ='INTANGIBLE PLANT'!E35 -> 0.1679850822 | E26: ='INTANGIBLE PLANT'!F35 -> 0.1431806346 | F26: ='INTANGIBLE PLANT'!G35 -> 0.169514244 | G26: ='INTANGIBLE PLANT'!H35 -> 0 | H26: 1
A27: I-DGP | B27: Intangible Plant - DGP Factor | C27: 1 | D27: 0 | E27: 0 | F27: 0 | G27: 0 | H27: 1
A28: I-DGU | B28: Intangible Plant - DGU Factor | C28: 1 | D28: 0 | E28: 0 | F28: 0 | G28: 0 | H28: 1
A29: I-SG | B29: Intangible Plant - SG Factor | C29: ='INTANGIBLE PLANT'!D33 -> 0.8398959025 | D29: ='INTANGIBLE PLANT'!E33 -> 0.1601040975 | E29: ='INTANGIBLE PLANT'!F33 -> 0 | F29: ='INTANGIBLE PLANT'!G33 -> 0 | G29: ='INTANGIBLE PLANT'!H33 -> 0 | H29: 1
A30: I-SITUS | B30: Intangible Plant - SITUS Factor | C30: ='INTANGIBLE PLANT'!D34 -> 1.857502225 | D30: ='INTANGIBLE PLANT'!E34 -> -0.4234057988 | E30: ='INTANGIBLE PLANT'!F34 -> -0.4340964259 | F30: ='INTANGIBLE PLANT'!G34 -> 0 | G30: ='INTANGIBLE PLANT'!H34 -> 0 | H30: 1
A31: LABOR | B31: Direct Labor Expense | C31: ='FORM 1'!C25 -> 0.4630936385 | D31: ='FORM 1'!D25 -> 0.0788155421 | E31: ='FORM 1'!E25 -> 0.3208311752 | F31: ='FORM 1'!F25 -> 0.1372596442 | G31: ='FORM 1'!G25 -> 0 | H31: 1
A32: MSS | B32: Materials & Supplies | C32: ='FORM 1'!C32 -> 0.8635209668 | D32: ='FORM 1'!D32 -> 0.006644339247 | E32: ='FORM 1'!E32 -> 0.1298346939 | F32: ='FORM 1'!F32 -> 0 | G32: ='FORM 1'!G32 -> 0 | H32: 1
A33: OTHDGP | B33: Other Revenues - DGP Factor | C33: =C37 -> 0.2786364796 | D33: =D37 -> 0.7213635204 | E33: =E37 -> 0 | F33: =F37 -> 0 | G33: =G37 -> 0 | H33: =ROUND(SUM(C33:G33),4) -> 1
A34: OTHDGU | B34: Other Revenues - DGU Factor | C34: =C37 -> 0.2786364796 | D34: =D37 -> 0.7213635204 | E34: =E37 -> 0 | F34: =F37 -> 0 | G34: =G37 -> 0 | H34: 1
A35: OTHSE | B35: Other Revenues - SE Factor | C35: ='OTHER REVENUE'!E24 -> 0 | D35: ='OTHER REVENUE'!F24 -> 1 | E35: ='OTHER REVENUE'!G24 -> 0 | F35: ='OTHER REVENUE'!H24 -> 0 | G35: ='OTHER REVENUE'!I24 -> 0 | H35: 1
A36: OTHSG | B36: Other Revenues - SG Factor | C36: ='OTHER REVENUE'!E25 -> 0.2786364796 | D36: ='OTHER REVENUE'!F25 -> 0.7213635204 | E36: ='OTHER REVENUE'!G25 -> 0 | F36: ='OTHER REVENUE'!H25 -> 0 | G36: ='OTHER REVENUE'!I25 -> 0 | H36: 1
A37: OTHSGR | B37: Other Revenues - Rolled-In SG Factor | C37: =+C36 -> 0.2786364796 | D37: =+D36 -> 0.7213635204 | E37: =+E36 -> 0 | F37: =+F36 -> 0 | G37: =+G36 -> 0 | H37: 1
A38: OTHSITUS | B38: Other Revenues - SITUS | C38: ='OTHER REVENUE'!E22 -> -0.2207179099 | D38: ='OTHER REVENUE'!F22 -> 0 | E38: ='OTHER REVENUE'!G22 -> 0 | F38: ='OTHER REVENUE'!H22 -> 0 | G38: ='OTHER REVENUE'!I22 -> 1.22071791 | H38: 1
A39: OTHSO | B39: Other Revenues - SO Factor | C39: ='OTHER REVENUE'!E26 -> 0 | D39: ='OTHER REVENUE'!F26 -> 0 | E39: ='OTHER REVENUE'!G26 -> 0 | F39: ='OTHER REVENUE'!H26 -> 0 | G39: ='OTHER REVENUE'!I26 -> 1 | H39: 1
A40: P | B40: Production | C40: ='FORM 1'!C13 -> 1 | D40: ='FORM 1'!D13 -> 0 | E40: ='FORM 1'!E13 -> 0 | F40: ='FORM 1'!F13 -> 0 | G40: ='FORM 1'!G13 -> 0 | H40: 1
A41: SCHMA | B41: Schedule M Additions | C41: ='SCH M'!F64 -> 0.3972693812 | D41: ='SCH M'!G64 -> 0.2199827077 | E41: ='SCH M'!H64 -> 0.3675865111 | F41: ='SCH M'!I64 -> 0.01042279038 | G41: ='SCH M'!J64 -> 0.004738609579 | H41: 1
A42: SCHMAF | B42: Schedule M Additions - Flow Through | C42: 1 | D42: 0 | E42: 0 | F42: 0 | G42: 0 | H42: 1
A43: SCHMAP | B43: Schedule M Additions - Permanent | C43: ='SCH M'!F16 -> 0.9641378267 | D43: ='SCH M'!G16 -> 0.005264412625 | E43: ='SCH M'!H16 -> 0.02142962726 | F43: ='SCH M'!I16 -> 0.009168133396 | G43: ='SCH M'!J16 -> 0 | H43: 1
A44: SCHMAP-SO | B44: Schedule M Additions - Permanent-SO | C44: ='SCH M'!F15 -> 1 | D44: ='SCH M'!G15 -> 0 | E44: ='SCH M'!H15 -> 0 | F44: ='SCH M'!I15 -> 0 | G44: ='SCH M'!J15 -> 0 | H44: 1
A45: SCHMAT | B45: Schedule M Additions - Temporary | C45: =+'SCH M'!F$56 -> 0.3967200062 | D45: =+'SCH M'!G$56 -> 0.2201907999 | E45: =+'SCH M'!H$56 -> 0.3679219857 | F45: =+'SCH M'!I$56 -> 0.01042400631 | G45: =+'SCH M'!J$56 -> 0.004743201957 | H45: =+'SCH M'!K$56 -> 0
A46: SCHMAT-GPS | B46: Schedule M Additions - Temporary-GPS | C46: 0 | D46: 0 | E46: 0 | F46: 0 | G46: 0 | H46: 0
A47: SCHMAT-SE | B47: Schedule M Additions - Temporary-SE | C47: ='SCH M'!F52 -> 1 | D47: ='SCH M'!G52 -> 0 | E47: ='SCH M'!H52 -> 0 | F47: ='SCH M'!I52 -> 0 | G47: ='SCH M'!J52 -> 0 | H47: 1
A48: SCHMAT-SITUS | B48: Schedule M Additions - Temporary-SITUS | C48: ='SCH M'!F54 -> 0.7192699683 | D48: ='SCH M'!G54 -> 0.007946056707 | E48: ='SCH M'!H54 -> 0.1984103617 | F48: ='SCH M'!I54 -> 0.07437361328 | G48: ='SCH M'!J54 -> 0 | H48: 1
A49: SCHMAT-SNP | B49: Schedule M Additions - Temporary-SNP | C49: ='SCH M'!F53 -> 0.4934420968 | D49: ='SCH M'!G53 -> 0.2431196814 | E49: ='SCH M'!H53 -> 0.2632343318 | F49: ='SCH M'!I53 -> 0.0002038899961 | G49: ='SCH M'!J53 -> 0 | H49: 1
A50: SCHMAT-SO | B50: Schedule M Additions - Temporary-SO | C50: ='SCH M'!F55 -> 0.4689372796 | D50: ='SCH M'!G55 -> 0.1102442757 | E50: ='SCH M'!H55 -> 0.3098141096 | F50: ='SCH M'!I55 -> 0.1110043351 | G50: ='SCH M'!J55 -> 0 | H50: 1
A51: SCHMD | B51: Schedule M Deductions | C51: =+'SCH M'!F$133 -> 0.4636341345 | D51: =+'SCH M'!G$133 -> 0.3032639196 | E51: =+'SCH M'!H$133 -> 0.2234424941 | F51: =+'SCH M'!I$133 -> 0.007606982733 | G51: =+'SCH M'!J$133 -> 0.00205246915 | H51: 1
A52: SCHMDF | B52: Schedule M Deductions - Flow Through | C52: 1 | D52: 0 | E52: 0 | F52: 0 | G52: 0 | H52: 1
A53: SCHMDP | B53: Schedule M Deductions - Permanent | C53: ='SCH M'!F76 -> 0.9995445282 | D53: ='SCH M'!G76 -> 0.0007304361753 | E53: ='SCH M'!H76 -> 0.0001175072206 | F53: ='SCH M'!I76 -> -0.0003924716452 | G53: ='SCH M'!J76 -> 0 | H53: 1
A54: SCHMDP-SO | B54: Schedule M Deductions - Permanent- SO | C54: ='SCH M'!F75 -> 0.4630936385 | D54: ='SCH M'!G75 -> 0.0788155421 | E54: ='SCH M'!H75 -> 0.3208311752 | F54: ='SCH M'!I75 -> 0.1372596442 | G54: ='SCH M'!J75 -> 0 | H54: 1
A55: SCHMDT | B55: Schedule M Deductions - Temporary | C55: ='SCH M'!F126 -> 0.4571481862 | D55: ='SCH M'!G126 -> 0.3069253834 | E55: ='SCH M'!H126 -> 0.2261453234 | F55: ='SCH M'!I126 -> 0.007703797514 | G55: ='SCH M'!J126 -> 0.002077309513 | H55: 1
A56: SCHMDT-GPS | B56: Schedule M Deductions - Temporary-GPS | C56: ='SCH M'!F117 -> 0.4936435016 | D56: ='SCH M'!G117 -> 0.2431212366 | E56: ='SCH M'!H117 -> 0.2632352617 | F56: ='SCH M'!I117 -> 0 | G56: ='SCH M'!J117 -> 0 | H56: 1
A57: SCHMDT-SG | B57: Schedule M Deductions - Temporary-SG | C57: ='SCH M'!F119 -> 0.9994204154 | D57: ='SCH M'!G119 -> 0.0005795845731 | E57: ='SCH M'!H119 -> 0 | F57: ='SCH M'!I119 -> 0 | G57: ='SCH M'!J119 -> 0 | H57: 1
A58: SCHMDT-SITUS | B58: Schedule M Deductions - Temporary-SITUS | C58: ='SCH M'!F125 -> 1.87691243 | D58: ='SCH M'!G125 -> -0.03470078301 | E58: ='SCH M'!H125 -> -0.120076967 | F58: ='SCH M'!I125 -> -0.06960583508 | G58: ='SCH M'!J125 -> -0.6525288447 | H58: 1
A59: SCHMDT-SNP | B59: Schedule M Deductions - Temporary-SNP | C59: ='SCH M'!F121 -> 0.4936435016 | D59: ='SCH M'!G121 -> 0.2431212366 | E59: ='SCH M'!H121 -> 0.2632352617 | F59: ='SCH M'!I121 -> 0 | G59: ='SCH M'!J121 -> 0 | H59: 1
A60: SCHMDT-SO | B60: Schedule M Deductions - Temporary-SO | C60: ='SCH M'!F122 -> 0.4442211028 | D60: ='SCH M'!G122 -> 0.09399671449 | E60: ='SCH M'!H122 -> 0.3469318973 | F60: ='SCH M'!I122 -> 0.1148502854 | G60: ='SCH M'!J122 -> 0 | H60: 1
A61: T | B61: Transmission | C61: ='FORM 1'!C14 -> 0 | D61: ='FORM 1'!D14 -> 1 | E61: ='FORM 1'!E14 -> 0 | F61: ='FORM 1'!F14 -> 0 | G61: ='FORM 1'!G14 -> 0 | H61: =ROUND(SUM(C61:G61),4) -> 1
A62: TAXDEPR | B62: Tax Depreciation | C62: =+'TAX DEPR'!C$24 -> 0.3770380522 | D62: =+'TAX DEPR'!D$24 -> 0.3617677382 | E62: =+'TAX DEPR'!E$24 -> 0.2559385071 | F62: =+'TAX DEPR'!F$24 -> 0.00525570255 | G62: =+'TAX DEPR'!G$24 -> 0 | H62: =ROUND(SUM(C62:G62),4) -> 1
A63: TD | B63: Transmission / Distribution | C63: ='FORM 1'!C18 -> 0 | D63: ='FORM 1'!D18 -> 0.4801384744 | E63: ='FORM 1'!E18 -> 0.5198615256 | F63: ='FORM 1'!F18 -> 0 | G63: ='FORM 1'!G18 -> 0 | H63: =ROUND(SUM(C63:G63),4) -> 1
A64: CWC | B64: Cash Working Capital | C64: 0.7511865157 | D64: 0.09372183869 | E64: 0.1206793736 | F64: 0.02922835366 | G64: 0.005183918348 | H64: 1
A65: DITEXP | B65: Deferred Income Tax - Expense | C65: 0 | D65: 0 | E65: 0 | F65: 0 | G65: 0 | H65: 1
A66: FIT | B66: Federal Income Taxes | C66: 0.1639033097 | D66: -0.02380085218 | E66: 0.8647216598 | F66: -0.009203509978 | G66: 0.004379392693 | H66: 1
A67: IBT | B67: Income Before Taxes | C67: 0.4803475224 | D67: -0.01479275298 | E67: 0.5374435255 | F67: -0.005720183823 | G67: 0.002721888855 | H67: 1
A68: NONE | B68: Not Functionalized | C68: 0 | D68: 0 | E68: 0 | F68: 0 | G68: 0 | H68: 0
A69: NUTIL | B69: Non-Utility | C69: 0 | D69: 0 | E69: 0 | F69: 0 | G69: 0 | H69: 0
A70: PT | B70: Production / Transmission | C70: 0.6779278634 | D70: 0.3220721366 | E70: 0 | F70: 0 | G70: 0 | H70: 1
A71: PTD | B71: Prod, Trans, Dist Plant | C71: 0.5049944477 | D71: 0.2399143766 | E71: 0.2550911758 | F71: 0 | G71: 0 | H71: 1
A72: REVREQ | B72: Revenue Requirement | C72: 0.675917434 | D72: 0.1544084851 | E72: 0.1464243205 | F72: 0.01988345408 | G72: 0.003366306281 | H72: 1
A73: SIT | B73: State Income Taxes | C73: 0.4803475224 | D73: -0.01479275298 | E73: 0.5374435255 | F73: -0.005720183823 | G73: 0.002721888855 | H73: 1

Sheet TAX DEPR
A1: =+'TOTAL FUNCFAC'!$A$1 -> PacifiCorp
A2: =+'TOTAL FUNCFAC'!A2 -> 12 Months Ended December 2015
A3: Tax Depreciation
B5: Total | C5: Production | D5: Transmission | E5: Distribution | F5: General | G5: Mining
A8: Total | B8: =SUM(C8:G8) -> 1137695628 | C8: =394756224-G8 -> 392504723 | D8: 390593731 | E8: 268306554 | F8: =83867469+171650 -> 84039119 | G8: 2251501
A12: Conversion to COS Functions | B12: Total | C12: Pro | D12: Trn | E12: Dis | F12: Retail | G12: Misc
A14: Percent of GenPlant in Functions | B14: =SUM(C14:F14) -> 1 | C14: 0.4069333423 | D14: 0.2497389706 | E14: 0.2721776099 | F14: 0.0711500773 | G14: 0
A15: (%'s developed in JAM Jun 2015 -
A16: use "Total Plant" variable)
A18: Allocation of GenPlant to Functions | B18: =SUM(C18:F18) -> 84039119 | C18: =+$F$8*C14 -> 34198319.58 | D18: =+$F$8*D14 -> 20987843.07 | E18: =+$F$8*E14 -> 22873566.55 | F18: =+$F$8*F14 -> 5979389.813 | G18: =+$F$8*G14 -> 0
A19: Assignment of Mining to Prod Function | B19: =SUM(C19:F19) -> 2251501 | C19: =G8 -> 2251501
A21: Adjusted Totals | B21: =SUM(C21:F21) -> 1137695628 | C21: =+C8+C18+C19 -> 428954543.6 | D21: =+D8+D18+D19 -> 411581574.1 | E21: =+E8+E18+E19 -> 291180120.5 | F21: =+F18+F19 -> 5979389.813 | G21: =+G18+G19 -> 0
A24: TAXDEPR FACTOR | B24: =SUM(C24:F24) -> 1 | C24: =+C21/$B$21 -> 0.3770380522 | D24: =+D21/$B$21 -> 0.3617677382 | E24: =+E21/$B$21 -> 0.2559385071 | F24: =+F21/$B$21 -> 0.00525570255 | G24: =+G21/$B$21 -> 0

Sheet GROSS PLANT
A2: =+'TOTAL FUNCFAC'!A2 -> 12 Months Ended December 2015
A3: Gross Plant
A4: (In 000's)
B6: Alloc.
A7: Description | B7: Factor | C7: Funct. | D7: Amount | E7: Production | F7: Transmisssion | G7: DPW | H7: CUSTOMER | I7: DMISC
A9: Production Plant | C9: P | D9: 12001446.47 | E9: =$D9*VLOOKUP(+$C9,$C$45:$I$51,3) -> 12001446.47 | F9: =$D9*VLOOKUP(+$C9,$C$45:$I$51,4) -> 0 | G9: =$D9*VLOOKUP(+$C9,$C$45:$I$51,5) -> 0 | H9: =$D9*VLOOKUP(+$C9,$C$45:$I$51,6) -> 0 | I9: =$D9*VLOOKUP(+$C9,$C$45:$I$51,7) -> 0
A10: Transmission Plant | C10: T | D10: 5910756.444 | E10: =$D10*VLOOKUP(+$C10,$C$45:$I$51,3) -> 0 | F10: =$D10*VLOOKUP(+$C10,$C$45:$I$51,4) -> 5910756.444 | G10: =$D10*VLOOKUP(+$C10,$C$45:$I$51,5) -> 0 | H10: =$D10*VLOOKUP(+$C10,$C$45:$I$51,6) -> 0 | I10: =$D10*VLOOKUP(+$C10,$C$45:$I$51,7) -> 0
A11: Distribution Plant | C11: DPW | D11: 6399768.038 | E11: =$D11*VLOOKUP(+$C11,$C$45:$I$51,3) -> 0 | F11: =$D11*VLOOKUP(+$C11,$C$45:$I$51,4) -> 0 | G11: =$D11*VLOOKUP(+$C11,$C$45:$I$51,5) -> 6399768.038 | H11: =$D11*VLOOKUP(+$C11,$C$45:$I$51,6) -> 0 | I11: =$D11*VLOOKUP(+$C11,$C$45:$I$51,7) -> 0
A12: Mining | B12: SE | C12: P | D12: =2559.113+190383.877+8535.366 -> 201478.356 | E12: =$D12*VLOOKUP(+$C12,$C$45:$I$51,3) -> 201478.356 | F12: =$D12*VLOOKUP(+$C12,$C$45:$I$51,4) -> 0 | G12: =$D12*VLOOKUP(+$C12,$C$45:$I$51,5) -> 0 | H12: =$D12*VLOOKUP(+$C12,$C$45:$I$51,6) -> 0 | I12: =$D12*VLOOKUP(+$C12,$C$45:$I$51,7) -> 0
A13: General Plant
A14: Business Centers | B14: ='GENERAL PLANT'!B7 -> CN | C14: ='GENERAL PLANT'!C7 -> CUST | D14: ='GENERAL PLANT'!D7 -> 19656.34706 | E14: =$D14*VLOOKUP(+$C14,$C$45:$I$51,3) -> 0 | F14: =$D14*VLOOKUP(+$C14,$C$45:$I$51,4) -> 0 | G14: =$D14*VLOOKUP(+$C14,$C$45:$I$51,5) -> 0 | H14: =$D14*VLOOKUP(+$C14,$C$45:$I$51,6) -> 19656.34706 | I14: =$D14*VLOOKUP(+$C14,$C$45:$I$51,7) -> 0
A15: Utah Mine | B15: ='GENERAL PLANT'!B8 -> SE | C15: ='GENERAL PLANT'!C8 -> P | D15: ='GENERAL PLANT'!D8 -> 1742.685456 | E15: 1742.685456 | F15: 0 | G15: 0 | H15: 0 | I15: 0
B16: ='GENERAL PLANT'!B9 -> SG | C16: ='GENERAL PLANT'!C9 -> P | D16: ='GENERAL PLANT'!D9 -> 118656.5118 | E16: 118656.5118 | F16: 0 | G16: 0 | H16: 0 | I16: 0
B17: ='GENERAL PLANT'!B10 -> SG | C17: ='GENERAL PLANT'!C10 -> T | D17: ='GENERAL PLANT'!D10 -> 149773.7757 | E17: 0 | F17: 149773.7757 | G17: 0 | H17: 0 | I17: 0
B18: ='GENERAL PLANT'!B12 -> SO | C18: ='GENERAL PLANT'!C12 -> DPW | D18: ='GENERAL PLANT'!D12 -> 0 | E18: 0 | F18: 0 | G18: 0 | H18: 0 | I18: 0
B19: ='GENERAL PLANT'!B17 -> SG | C19: ='GENERAL PLANT'!C17 -> DPW | D19: ='GENERAL PLANT'!D17 -> 0 | E19: 0 | F19: 0 | G19: 0 | H19: 0 | I19: 0
B20: ='GENERAL PLANT'!B18 -> SG | C20: ='GENERAL PLANT'!C18 -> P | D20: ='GENERAL PLANT'!D18 -> 0 | E20: 0 | F20: 0 | G20: 0 | H20: 0 | I20: 0
A21: General Plant | B21: ='GENERAL PLANT'!B19 -> SITUS | C21: ='GENERAL PLANT'!C19 -> DPW | D21: ='GENERAL PLANT'!D19 -> 224096.5542 | E21: 0 | F21: 0 | G21: 224096.5542 | H21: 0 | I21: 0
A22: General Plant | B22: ='GENERAL PLANT'!B20 -> SITUS | C22: ='GENERAL PLANT'!C20 -> P | D22: ='GENERAL PLANT'!D20 -> 0 | E22: 0 | F22: 0 | G22: 0 | H22: 0 | I22: 0
A23: General Plant | B23: ='GENERAL PLANT'!B21 -> SITUS | C23: ='GENERAL PLANT'!C21 -> TD | D23: ='GENERAL PLANT'!D21 -> 361622.424 | E23: 0 | F23: 173628.839 | G23: 187993.585 | H23: 0 | I23: 0
A24: Total General Plant | D24: =SUBTOTAL(9,D14:D23) -> 875548.2982 | E24: 120399.1973 | F24: 323402.6147 | G24: 412090.1392 | H24: 19656.34706 | I24: 0
A26: Intangible Plant
A27: Customer Service Sys | B27: ='INTANGIBLE PLANT'!A7 -> CN | C27: ='INTANGIBLE PLANT'!B7 -> CUST | D27: ='INTANGIBLE PLANT'!C7 -> 134387.7561 | E27: =$D27*VLOOKUP(+$C27,$C$45:$I$52,3) -> 0 | F27: =$D27*VLOOKUP(+$C27,$C$45:$I$52,4) -> 0 | G27: =$D27*VLOOKUP(+$C27,$C$45:$I$52,5) -> 0 | H27: =$D27*VLOOKUP(+$C27,$C$45:$I$52,6) -> 134387.7561 | I27: =$D27*VLOOKUP(+$C27,$C$45:$I$52,7) -> 0
A28: Customer Service Sys | B28: ='INTANGIBLE PLANT'!A8 -> SE | C28: ='INTANGIBLE PLANT'!B8 -> P | D28: ='INTANGIBLE PLANT'!C8 -> 1833.747628 | E28: 1833.747628 | F28: 0 | G28: 0 | H28: 0 | I28: 0
A29: Washington Hydro | B29: ='INTANGIBLE PLANT'!A9 -> SG | C29: ='INTANGIBLE PLANT'!B9 -> P | D29: ='INTANGIBLE PLANT'!C9 -> 114693.0057 | E29: 114693.0057 | F29: 0 | G29: 0 | H29: 0 | I29: 0
A30: Utah Hydro | B30: ='INTANGIBLE PLANT'!A10 -> SG | C30: ='INTANGIBLE PLANT'!B10 -> T | D30: ='INTANGIBLE PLANT'!C10 -> 56673.31577 | E30: 0 | F30: 56673.31577 | G30: 0 | H30: 0 | I30: 0
A31: Colorado Steam-UPD | B31: ='INTANGIBLE PLANT'!A11 -> SG | C31: ='INTANGIBLE PLANT'!B11 -> P | D31: ='INTANGIBLE PLANT'!C11 -> 172821.2447 | E31: 172821.2447 | F31: 0 | G31: 0 | H31: 0 | I31: 0
B32: ='INTANGIBLE PLANT'!A12 -> SG | C32: ='INTANGIBLE PLANT'!B12 -> P | D32: ='INTANGIBLE PLANT'!C12 -> 9790.35601 | E32: 9790.35601 | F32: 0 | G32: 0 | H32: 0 | I32: 0
A33: Oregon Trans | B33: ='INTANGIBLE PLANT'!A15 -> SO | C33: ='INTANGIBLE PLANT'!B15 -> P | D33: ='INTANGIBLE PLANT'!C15 -> 26771.95525 | E33: 26771.95525 | F33: 0 | G33: 0 | H33: 0 | I33: 0
A34: Utah Mine | B34: ='INTANGIBLE PLANT'!A16 -> SO | C34: ='INTANGIBLE PLANT'!B16 -> PTD | D34: ='INTANGIBLE PLANT'!C16 -> 286483.4131 | E34: 141420.6752 | F34: 69650.20168 | G34: 75412.53624 | H34: 0 | I34: 0
A35: Utah | B35: ='INTANGIBLE PLANT'!A18 -> SO | C35: ='INTANGIBLE PLANT'!B18 -> TD | D35: ='INTANGIBLE PLANT'!C18 -> 12740.98296 | E35: 0 | F35: 6117.436121 | G35: 6623.546839 | H35: 0 | I35: 0
A36: Utah G/O | B36: ='INTANGIBLE PLANT'!A19 -> SO | C36: ='INTANGIBLE PLANT'!B19 -> LABOR | D36: ='INTANGIBLE PLANT'!C19 -> 0 | E36: 0 | F36: 0 | G36: 0 | H36: 0 | I36: 0
A37: Utah G/O | B37: ='INTANGIBLE PLANT'!A25 -> SITUS | C37: ='INTANGIBLE PLANT'!B25 -> TD | D37: ='INTANGIBLE PLANT'!C25 -> 13771.22369 | E37: 0 | F37: 6612.094331 | G37: 7159.129355 | H37: 0 | I37: 0
A38: Total Intangible Plant | D38: =SUBTOTAL(9,D27:D37) -> 829967.0009 | E38: 467330.9845 | F38: 139053.0479 | G38: 89195.21243 | H38: 134387.7561 | I38: 0
A40: Total Gross Plant | D40: =SUBTOTAL(9,D8:D38) -> 26218964.61 | E40: 12790655.01 | F40: 6373212.107 | G40: 6901053.39 | H40: 154044.1032 | I40: 0
B42: GP Factor | D42: =SUM(E42:I42) -> 1 | E42: =E40/$D40 -> 0.4878398213 | F42: =F40/$D40 -> 0.243076422 | G42: =G40/$D40 -> 0.2632084635 | H42: =H40/$D40 -> 0.005875293149 | I42: =I40/$D40 -> 0
B45: Functional Allocators: | E45: Prod | F45: Trans | G45: DPW | H45: CUST | I45: DMISC
C46: P | D46: =SUM(E46:F46) -> 1 | E46: ='FORM 1'!$C$13 -> 1 | F46: ='FORM 1'!$D$13 -> 0 | G46: ='FORM 1'!$E$13 -> 0 | H46: ='FORM 1'!$F$13 -> 0 | I46: ='FORM 1'!$G$13 -> 0
C47: T | D47: =SUM(E47:F47) -> 1 | E47: ='FORM 1'!$C$14 -> 0 | F47: ='FORM 1'!$D$14 -> 1 | G47: ='FORM 1'!$E$14 -> 0 | H47: ='FORM 1'!$F$14 -> 0 | I47: ='FORM 1'!$G$14 -> 0
C48: TD | D48: =SUM(E48:I48) -> 1 | E48: ='FORM 1'!$C$18 -> 0 | F48: ='FORM 1'!$D$18 -> 0.4801384744 | G48: ='FORM 1'!$E$18 -> 0.5198615256 | H48: ='FORM 1'!$F$18 -> 0 | I48: ='FORM 1'!$G$18 -> 0
C49: CUST | D49: =SUM(E49:I49) -> 1 | E49: 0 | F49: 0 | G49: 0 | H49: 1 | I49: 0
C50: DPW | D50: =SUM(E50:I50) -> 1 | E50: 0 | F50: 0 | G50: 1 | H50: 0 | I50: 0
C51: PTD | D51: =SUM(E51:I51) -> 1 | E51: ='FORM 1'!$C$16 -> 0.4936435016 | F51: ='FORM 1'!$D$16 -> 0.2431212366 | G51: ='FORM 1'!$E$16 -> 0.2632352617 | H51: ='FORM 1'!$F$16 -> 0 | I51: ='FORM 1'!$G$16 -> 0
C52: LABOR | D52: =SUM(E52:I52) -> 1 | E52: ='SCH M'!F144 -> 0.4630936385 | F52: ='SCH M'!G144 -> 0.0788155421 | G52: ='SCH M'!H144 -> 0.3208311752 | H52: ='SCH M'!I144 -> 0.1372596442 | I52: ='SCH M'!J144 -> 0

Sheet FORM 1
A1: =+'TOTAL FUNCFAC'!A1 -> PacifiCorp
A2: =+'TOTAL FUNCFAC'!A2 -> 12 Months Ended December 2015
A3: FERC FORM 1 Funtionalization Factors
A6: Factor | B6: Total | C6: Production | D6: Transmission | E6: DPW | F6: CUST | G6: DMSC
A8: PLANT | B8: =SUM(C8:G8) -> 24311970.96 | C8: =+'GROSS PLANT'!D9 -> 12001446.47 | D8: =+'GROSS PLANT'!D10 -> 5910756.444 | E8: =+'GROSS PLANT'!D11 -> 6399768.038 | F8: 0 | G8: 0
A9: UNCLASSIFIED PLANT | B9: =SUM(C9:G9) -> 0 | F9: 0 | G9: 0
A10: TOTAL PLANT | B10: =SUM(C10:G10) -> 24311970.96 | C10: =C8+C9 -> 12001446.47 | D10: =D8+D9 -> 5910756.444 | E10: =E8+E9 -> 6399768.038 | F10: 0 | G10: 0
A12: PLANT %
A13: P | B13: =SUM(C13:G13) -> 1 | C13: =C10/C10 -> 1
A14: T | B14: 1 | D14: =D10/D10 -> 1
A15: DPW | B15: 1 | E15: =E10/E10 -> 1
A16: PTD | B16: 1 | C16: =C10/$B10 -> 0.4936435016 | D16: =D10/$B10 -> 0.2431212366 | E16: =E10/$B10 -> 0.2632352617 | F16: =F10/$B10 -> 0 | G16: =G10/$B10 -> 0
A17: PT | B17: 1 | C17: =C10/(C10+D10) -> 0.6700151025 | D17: =D10/(C10+D10) -> 0.3299848975
A18: TD | B18: 1 | D18: =D10/(D10+E10) -> 0.4801384744 | E18: =E10/(D10+E10) -> 0.5198615256
A23: LABOR | B23: =SUM(C23:G23) -> 318938376 | C23: 147698333 | D23: 25137301 | E23: 102325374 | F23: 43777368 | G23: 0
A25: LABOR % | B25: =B23/$B23 -> 1 | C25: =C23/$B23 -> 0.4630936385 | D25: =D23/$B23 -> 0.0788155421 | E25: =E23/$B23 -> 0.3208311752 | F25: =F23/$B23 -> 0.1372596442 | G25: =G23/$B23 -> 0
A27: Source: Ferc Form 1 (Dec 2015) - pg. 354
A30: Material & Supplies | B30: =SUM(C30:G30) -> 98373213 | C30: 84947332 | D30: 653625 | E30: 12772256 | F30: 0 | G30: 0
A32: Material & Supplies % | B32: =B30/$B30 -> 1 | C32: 0.8635209668 | D32: 0.006644339247 | E32: 0.1298346939 | F32: 0 | G32: 0
A34: Source: Ferc Form 1 (Dec 2015) - pg. 227, Total Company
A37: FERC (mWh) | B37: 26956561 | C37: =B37-D37 -> 13808682 | D37: 13147879 | E37: 0 | F37: 0 | G37: 0
A39: FERC % | B39: =B37/$B37 -> 1 | C39: =C37/$B37 -> 0.512256812 | D39: =D37/$B37 -> 0.487743188 | E39: 0 | F39: 0 | G39: 0
A41: Source: FERC reporting requirement No. 582 - (from Transmissio Dept., 4-13-16)

Sheet BOOKDPR
A1: =+'TOTAL FUNCFAC'!$A$1 -> PacifiCorp
A2: =+'TOTAL FUNCFAC'!A2 -> 12 Months Ended December 2015
A3: Depreciation Expense
A6: Function | B6: Amount | C6: Production | D6: Transmission | E6: DPW | F6: CUST | G6: DMSC
A7: CUST | B7: 1195.39703 | C7: =VLOOKUP($A7,$A$16:$G$22,3,FALSE)*$B7 -> 0 | D7: =VLOOKUP($A7,$A$16:$G$22,4,FALSE)*$B7 -> 0 | E7: =VLOOKUP($A7,$A$16:$G$22,5,FALSE)*$B7 -> 0 | F7: =VLOOKUP($A7,$A$16:$G$22,6,FALSE)*$B7 -> 1195.39703 | G7: =VLOOKUP($A7,$A$16:$G$22,7,FALSE)*$B7 -> 0
A8: DPW | B8: 138874.4363 | C8: =VLOOKUP($A8,$A$16:$G$22,3,FALSE)*$B8 -> 0 | D8: =VLOOKUP($A8,$A$16:$G$22,4,FALSE)*$B8 -> 0 | E8: =VLOOKUP($A8,$A$16:$G$22,5,FALSE)*$B8 -> 138874.4363 | F8: =VLOOKUP($A8,$A$16:$G$22,6,FALSE)*$B8 -> 0 | G8: =VLOOKUP($A8,$A$16:$G$22,7,FALSE)*$B8 -> 0
A9: P | B9: 397129.1825 | C9: =VLOOKUP($A9,$A$16:$G$22,3,FALSE)*$B9 -> 397129.1825 | D9: =VLOOKUP($A9,$A$16:$G$22,4,FALSE)*$B9 -> 0 | E9: =VLOOKUP($A9,$A$16:$G$22,5,FALSE)*$B9 -> 0 | F9: =VLOOKUP($A9,$A$16:$G$22,6,FALSE)*$B9 -> 0 | G9: =VLOOKUP($A9,$A$16:$G$22,7,FALSE)*$B9 -> 0
A10: PTD | B10: 14478.73539 | C10: =VLOOKUP($A10,$A$16:$G$22,3,FALSE)*$B10 -> 7147.333637 | D10: =VLOOKUP($A10,$A$16:$G$22,4,FALSE)*$B10 -> 3520.088053 | E10: =VLOOKUP($A10,$A$16:$G$22,5,FALSE)*$B10 -> 3811.3137 | F10: =VLOOKUP($A10,$A$16:$G$22,6,FALSE)*$B10 -> 0 | G10: =VLOOKUP($A10,$A$16:$G$22,7,FALSE)*$B10 -> 0
A11: T | B11: 98935.04031 | C11: =VLOOKUP($A11,$A$16:$G$22,3,FALSE)*$B11 -> 0 | D11: =VLOOKUP($A11,$A$16:$G$22,4,FALSE)*$B11 -> 98935.04031 | E11: =VLOOKUP($A11,$A$16:$G$22,5,FALSE)*$B11 -> 0 | F11: =VLOOKUP($A11,$A$16:$G$22,6,FALSE)*$B11 -> 0 | G11: =VLOOKUP($A11,$A$16:$G$22,7,FALSE)*$B11 -> 0
A12: Book Depreciation | B12: =SUM(B7:B11) -> 650612.7916 | C12: 404276.5162 | D12: 102455.1284 | E12: 142685.75 | F12: 1195.39703 | G12: 0
A13: BookDepr Factor | B13: =B12/$B12 -> 1 | C13: 0.6213780629 | D13: 0.157474814 | E13: 0.2193097828 | F13: 0.00183734019 | G13: 0
A16: P | B16: ='FORM 1'!$B$13 -> 1 | C16: ='FORM 1'!$C$13 -> 1 | D16: ='FORM 1'!$D$13 -> 0 | E16: ='FORM 1'!$E$13 -> 0 | F16: ='FORM 1'!$F$13 -> 0 | G16: ='FORM 1'!$G$13 -> 0
A17: T | B17: ='FORM 1'!$B$14 -> 1 | C17: ='FORM 1'!$C$14 -> 0 | D17: ='FORM 1'!$D$14 -> 1 | E17: ='FORM 1'!$E$14 -> 0 | F17: ='FORM 1'!$F$14 -> 0 | G17: ='FORM 1'!$G$14 -> 0
A18: DPW | B18: ='FORM 1'!$B$15 -> 1 | C18: ='FORM 1'!$C$15 -> 0 | D18: ='FORM 1'!$D$15 -> 0 | E18: ='FORM 1'!$E$15 -> 1 | F18: ='FORM 1'!$F$15 -> 0 | G18: ='FORM 1'!$G$15 -> 0
A19: CUST | B19: ='FORM 1'!$B$15 -> 1 | C19: 0 | D19: 0 | E19: 0 | F19: 1 | G19: 0
A20: PTD | B20: ='FORM 1'!$B$16 -> 1 | C20: ='FORM 1'!$C$16 -> 0.4936435016 | D20: ='FORM 1'!$D$16 -> 0.2431212366 | E20: ='FORM 1'!$E$16 -> 0.2632352617 | F20: ='FORM 1'!$F$16 -> 0 | G20: ='FORM 1'!$G$16 -> 0
A21: TD | B21: ='FORM 1'!$B$18 -> 1 | C21: ='FORM 1'!$C$18 -> 0 | D21: ='FORM 1'!$D$18 -> 0.4801384744 | E21: ='FORM 1'!$E$18 -> 0.5198615256 | F21: ='FORM 1'!$F$18 -> 0 | G21: ='FORM 1'!$G$18 -> 0
A22: G | B22: ='GENERAL PLANT'!$D$38 -> 1 | C22: ='GENERAL PLANT'!$E$38 -> 0.2203833051 | D22: ='GENERAL PLANT'!$F$38 -> 0.339993511 | E22: ='GENERAL PLANT'!$G$38 -> 0.4223969714 | F22: ='GENERAL PLANT'!$H$38 -> 0.0172262126 | G22: ='GENERAL PLANT'!$I$38 -> 0

Sheet OTHER REVENUE
A1: =+'TOTAL FUNCFAC'!A1 -> PacifiCorp
A2: =+'TOTAL FUNCFAC'!A2:A2 -> 12 Months Ended December 2015
A3: Account 456
A5: Main
A6: Account | B6: Factor | C6: Function | D6: Amount | E6: Production | F6: Transmission | G6: DPW | H6: Customer | I6: DMSC
A7: 456 | B7: OTHER | C7: P | D7: -181.82543 | E7: =$D7*VLOOKUP(+$C7,$C$30:$I36,3,FALSE) -> -181.82543 | F7: =$D7*VLOOKUP(+$C7,$C$30:$I36,4,FALSE) -> 0 | G7: =$D7*VLOOKUP(+$C7,$C$30:$I36,5,FALSE) -> 0 | H7: =$D7*VLOOKUP(+$C7,$C$30:$I36,6,FALSE) -> 0 | I7: =$D7*VLOOKUP(+$C7,$C$30:$I36,7,FALSE) -> 0
A8: 456 | B8: OTHER | C8: T | D8: 5114.02897 | E8: =$D8*VLOOKUP(+$C8,$C$30:$I37,3,FALSE) -> 0 | F8: =$D8*VLOOKUP(+$C8,$C$30:$I37,4,FALSE) -> 5114.02897 | G8: =$D8*VLOOKUP(+$C8,$C$30:$I37,5,FALSE) -> 0 | H8: =$D8*VLOOKUP(+$C8,$C$30:$I37,6,FALSE) -> 0 | I8: =$D8*VLOOKUP(+$C8,$C$30:$I37,7,FALSE) -> 0
A9: 456 | B9: SE | C9: P | D9: 0 | E9: =$D9*VLOOKUP(+$C9,$C$30:$I37,3,FALSE) -> 0 | F9: =$D9*VLOOKUP(+$C9,$C$30:$I37,4,FALSE) -> 0 | G9: =$D9*VLOOKUP(+$C9,$C$30:$I37,5,FALSE) -> 0 | H9: =$D9*VLOOKUP(+$C9,$C$30:$I37,6,FALSE) -> 0 | I9: =$D9*VLOOKUP(+$C9,$C$30:$I37,7,FALSE) -> 0
A10: 456 | B10: SE | C10: T | D10: -8324.82569 | E10: =$D10*VLOOKUP(+$C10,$C$30:$I38,3,FALSE) -> 0 | F10: =$D10*VLOOKUP(+$C10,$C$30:$I38,4,FALSE) -> -8324.82569 | G10: =$D10*VLOOKUP(+$C10,$C$30:$I38,5,FALSE) -> 0 | H10: =$D10*VLOOKUP(+$C10,$C$30:$I38,6,FALSE) -> 0 | I10: =$D10*VLOOKUP(+$C10,$C$30:$I38,7,FALSE) -> 0
A11: 456 | B11: SG | C11: P | D11: -32751.93205 | E11: =$D11*VLOOKUP(+$C11,$C$30:$I39,3,FALSE) -> -32751.93205 | F11: =$D11*VLOOKUP(+$C11,$C$30:$I39,4,FALSE) -> 0 | G11: =$D11*VLOOKUP(+$C11,$C$30:$I39,5,FALSE) -> 0 | H11: =$D11*VLOOKUP(+$C11,$C$30:$I39,6,FALSE) -> 0 | I11: =$D11*VLOOKUP(+$C11,$C$30:$I39,7,FALSE) -> 0
A12: 456 | B12: SG | C12: T | D12: -84791.65771 | E12: =$D12*VLOOKUP(+$C12,$C$30:$I39,3,FALSE) -> 0 | F12: =$D12*VLOOKUP(+$C12,$C$30:$I39,4,FALSE) -> -84791.65771 | G12: =$D12*VLOOKUP(+$C12,$C$30:$I39,5,FALSE) -> 0 | H12: =$D12*VLOOKUP(+$C12,$C$30:$I39,6,FALSE) -> 0 | I12: =$D12*VLOOKUP(+$C12,$C$30:$I39,7,FALSE) -> 0
A13: 456 | B13: SO | C13: DMSC | D13: -1473.93206 | E13: =$D13*VLOOKUP(+$C13,$C$30:$I40,3,FALSE) -> 0 | F13: =$D13*VLOOKUP(+$C13,$C$30:$I40,4,FALSE) -> 0 | G13: =$D13*VLOOKUP(+$C13,$C$30:$I40,5,FALSE) -> 0 | H13: =$D13*VLOOKUP(+$C13,$C$30:$I40,6,FALSE) -> 0 | I13: =$D13*VLOOKUP(+$C13,$C$30:$I40,7,FALSE) -> -1473.93206
A14: 456 | B14: SITUS | C14: DMSC | D14: 1596.23967 | E14: =$D14*VLOOKUP(+$C14,$C$30:$I41,3,FALSE) -> 0 | F14: =$D14*VLOOKUP(+$C14,$C$30:$I41,4,FALSE) -> 0 | G14: =$D14*VLOOKUP(+$C14,$C$30:$I41,5,FALSE) -> 0 | H14: =$D14*VLOOKUP(+$C14,$C$30:$I41,6,FALSE) -> 0 | I14: =$D14*VLOOKUP(+$C14,$C$30:$I41,7,FALSE) -> 1596.23967
A15: 456 | B15: SITUS | C15: P | D15: -288.61597 | E15: =$D15*VLOOKUP(+$C15,$C$30:$I42,3,FALSE) -> -288.61597 | F15: =$D15*VLOOKUP(+$C15,$C$30:$I42,4,FALSE) -> 0 | G15: =$D15*VLOOKUP(+$C15,$C$30:$I42,5,FALSE) -> 0 | H15: =$D15*VLOOKUP(+$C15,$C$30:$I42,6,FALSE) -> 0 | I15: =$D15*VLOOKUP(+$C15,$C$30:$I42,7,FALSE) -> 0
A16: Total Situs Revenues | D16: =SUMIF($B:$B,"SITUS",D:D) -> 1307.6237 | E16: -288.61597 | F16: 0 | G16: 0 | H16: 0 | I16: 1596.23967
A17: Total CN Revenues | D17: =SUMIF($B:$B,"CN",D:D) -> 0 | E17: 0 | F17: 0 | G17: 0 | H17: 0 | I17: 0
A18: Total SE Revenues | D18: =SUMIF($B:$B,"SE",D:D) -> -8324.82569 | E18: 0 | F18: -8324.82569 | G18: 0 | H18: 0 | I18: 0
A19: Total SG Revenues | D19: =SUMIF($B:$B,"SG",D:D) -> -117543.5898 | E19: -32751.93205 | F19: -84791.65771 | G19: 0 | H19: 0 | I19: 0
A20: Total SO Revenues | D20: =SUMIF($B:$B,"SO",D:D) -> -1473.93206 | E20: 0 | F20: 0 | G20: 0 | H20: 0 | I20: -1473.93206
A21: Total Operation | D21: =SUM(D7:D15) -> -121102.5203 | E21: -33222.37345 | F21: -88002.45443 | G21: 0 | H21: 0 | I21: 122.30761
A22: OTHSITUS | D22: =SUM(E22:I22) -> 1 | E22: =E16/$D$16 -> -0.2207179099 | F22: =F16/$D$16 -> 0 | G22: =G16/$D$16 -> 0 | H22: =H16/$D$16 -> 0 | I22: =I16/$D$16 -> 1.22071791
A23: CN Factor | D23: 0 | E23: =IF(ISERROR(E17/$D$17)," ",(E17/$D$17)) ->  | F23: =IF(ISERROR(F17/$D$17)," ",(F17/$D$17)) ->  | G23: =IF(ISERROR(G17/$D$17)," ",(G17/$D$17)) ->  | H23: =IF(ISERROR(H17/$D$17)," ",(H17/$D$17)) ->  | I23: =IF(ISERROR(I17/$D$17)," ",(I17/$D$17)) -> 
A24: OTHSE | D24: 1 | E24: =E18/$D$18 -> 0 | F24: =F18/$D$18 -> 1 | G24: =G18/$D$18 -> 0 | H24: =H18/$D$18 -> 0 | I24: =I18/$D$18 -> 0
A25: OTHSG | D25: 1 | E25: =E19/$D$19 -> 0.2786364796 | F25: =F19/$D$19 -> 0.7213635204 | G25: =G19/$D$19 -> 0 | H25: =H19/$D$19 -> 0 | I25: =I19/$D$19 -> 0
A26: OTHSO | D26: 1 | E26: =E20/$D$20 -> 0 | F26: =F20/$D$20 -> 0 | G26: =G20/$D$20 -> 0 | H26: =H20/$D$20 -> 0 | I26: =I20/$D$20 -> 1
A27: Total Operation Factor | D27: 1 | E27: =E21/$D$21 -> 0.2743326347 | F27: =F21/$D$21 -> 0.7266773163 | G27: =G21/$D$21 -> 0 | H27: =H21/$D$21 -> 0 | I27: =I21/$D$21 -> -0.001009950988
D29: Total | E29: Prod | F29: Trans | G29: DPW | H29: CUST | I29: DMSC
C30: P | D30: =SUM(E30:I30) -> 1 | E30: ='FORM 1'!$C$13 -> 1 | F30: ='FORM 1'!$D$13 -> 0 | G30: ='FORM 1'!$E$13 -> 0 | H30: ='FORM 1'!$F$13 -> 0 | I30: ='FORM 1'!$G$13 -> 0
C31: T | D31: =SUM(E31:I31) -> 1 | E31: ='FORM 1'!$C$14 -> 0 | F31: ='FORM 1'!$D$14 -> 1 | G31: ='FORM 1'!$E$14 -> 0 | H31: ='FORM 1'!$F$14 -> 0 | I31: ='FORM 1'!$G$14 -> 0
C32: TD | D32: 1 | E32: ='FORM 1'!$C$18 -> 0 | F32: ='FORM 1'!$D$18 -> 0.4801384744 | G32: ='FORM 1'!$E$18 -> 0.5198615256 | H32: ='FORM 1'!$F$18 -> 0 | I32: ='FORM 1'!$G$18 -> 0
C33: CUST | D33: 1 | E33: 0 | F33: 0 | G33: 0 | H33: 1 | I33: 0
C34: DPW | D34: 1 | E34: 0 | F34: 0 | G34: 1 | H34: 0 | I34: 0
C35: PTD | D35: 1 | E35: ='FORM 1'!$C$16 -> 0.4936435016 | F35: ='FORM 1'!$D$16 -> 0.2431212366 | G35: ='FORM 1'!$E$16 -> 0.2632352617 | H35: ='FORM 1'!$F$16 -> 0 | I35: ='FORM 1'!$G$16 -> 0
C36: DMSC | D36: 1 | E36: 0 | F36: 0 | G36: 0 | H36: 0 | I36: 1

Sheet GENERAL PLANT
A1: =+'TOTAL FUNCFAC'!$A$1 -> PacifiCorp
A2: =+'TOTAL FUNCFAC'!A2 -> 12 Months Ended December 2015
A3: General Plant
B5: Alloc.
A6: Description | B6: Factor | C6: Funct. | D6: Amount | E6: Prod | F6: Trans | G6: DPW | H6: CUST | I6: DMSC
A7: Business Centers | B7: CN | C7: CUST | D7: 19656.34706 | E7: =$D7*VLOOKUP(+$C7,$B$45:$H$51,3) -> 0 | F7: =$D7*VLOOKUP(+$C7,$B$45:$H$51,4) -> 0 | G7: =$D7*VLOOKUP(+$C7,$B$45:$H$51,5) -> 0 | H7: =$D7*VLOOKUP(+$C7,$B$45:$H$51,6) -> 19656.34706 | I7: =$D7*VLOOKUP(+$C7,$B$45:$H$51,7) -> 0
B8: SE | C8: P | D8: 1742.685456 | E8: 1742.685456 | F8: 0 | G8: 0 | H8: 0 | I8: 0
B9: SG | C9: P | D9: 118656.5118 | E9: 118656.5118 | F9: 0 | G9: 0 | H9: 0 | I9: 0
B10: SG | C10: T | D10: 149773.7757 | E10: 0 | F10: 149773.7757 | G10: 0 | H10: 0 | I10: 0
B11: SG | C11: TD | D11: 0 | E11: 0 | F11: 0 | G11: 0 | H11: 0 | I11: 0
A12: General Plant | B12: SO | C12: DPW | D12: 0 | E12: 0 | F12: 0 | G12: 0 | H12: 0 | I12: 0
B13: SO | C13: PTD | D13: 265523.5974 | E13: 131073.9984 | F13: 64554.42536 | G13: 69895.17366 | H13: 0 | I13: 0
B14: SO | C14: TD | D14: 0 | E14: 0 | F14: 0 | G14: 0 | H14: 0 | I14: 0
B15: SO | C15: P | D15: 0 | E15: 0 | F15: 0 | G15: 0 | H15: 0 | I15: 0
A16: SSGCH | B16: SG | C16: P | D16: 0 | E16: 0 | F16: 0 | G16: 0 | H16: 0 | I16: 0
A17: SSGCT | B17: SG | C17: DPW | D17: 0 | E17: 0 | F17: 0 | G17: 0 | H17: 0 | I17: 0
A18: SSGCT | B18: SG | C18: P | D18: 0 | E18: 0 | F18: 0 | G18: 0 | H18: 0 | I18: 0
B19: SITUS | C19: DPW | D19: 224096.5542 | E19: 0 | F19: 0 | G19: 224096.5542 | H19: 0 | I19: 0
B20: SITUS | C20: P | D20: 0 | E20: 0 | F20: 0 | G20: 0 | H20: 0 | I20: 0
B21: SITUS | C21: TD | D21: 361622.424 | E21: 0 | F21: 173628.839 | G21: 187993.585 | H21: 0 | I21: 0
A22: Total-CUST | D22: =SUMIF($C:$C,"CUST",D:D) -> 19656.34706 | E22: 0 | F22: 0 | G22: 0 | H22: 19656.34706 | I22: 0
A23: Total-TD | D23: =SUMIF($C:$C,"TD",D:D) -> 361622.424 | E23: 0 | F23: 173628.839 | G23: 187993.585 | H23: 0 | I23: 0
A24: Total-PTD | D24: =SUMIF($C:$C,"PTD",D:D) -> 265523.5974 | E24: 131073.9984 | F24: 64554.42536 | G24: 69895.17366 | H24: 0 | I24: 0
A25: Total-DPW | D25: =SUMIF($C:$C,"DPW",D:D) -> 224096.5542 | E25: 0 | F25: 0 | G25: 224096.5542 | H25: 0 | I25: 0
A26: Total-SSGCH | D26: =SUMIF($B:$B,"SSGCH",D:D) -> 0 | E26: 0 | F26: 0 | G26: 0 | H26: 0 | I26: 0
A27: Total-SSGCT | D27: =SUMIF($B:$B,"SSGCT",D:D) -> 0 | E27: 0 | F27: 0 | G27: 0 | H27: 0 | I27: 0
A28: Total-G-SG | D28: =SUMIF($B:$B,"SG",D:D) -> 268430.2876 | E28: 118656.5118 | F28: 149773.7757 | G28: 0 | H28: 0 | I28: 0
A29: Total-SE | D29: =SUMIF($B:$B,"SE",D:D) -> 1742.685456 | E29: 1742.685456 | F29: 0 | G29: 0 | H29: 0 | I29: 0
A30: Total-G-Situs | D30: =SUMIF($B:$B,"SITUS",D:D) -> 585718.9781 | E30: 0 | F30: 173628.839 | G30: 412090.1392 | H30: 0 | I30: 0
A31: Total-SO | D31: =SUMIF($B:$B,"SO",D:D) -> 265523.5974 | E31: 131073.9984 | F31: 64554.42536 | G31: 69895.17366 | H31: 0 | I31: 0
A32: Total-General Plant | D32: =SUM(D7:D21) -> 1141071.896 | E32: 251473.1957 | F32: 387957.0401 | G32: 481985.3128 | H32: 19656.34706 | I32: 0
A34: G-SG Factor | D34: =SUM(E34:I34) -> 1 | E34: =E28/$D$28 -> 0.4420384633 | F34: =F28/$D$28 -> 0.5579615367 | G34: =G28/$D$28 -> 0 | H34: =H28/$D$28 -> 0 | I34: =I28/$D$28 -> 0
A35: . | D35: =SUM(E35:I35) -> 1 | E35: =E29/$D$29 -> 1 | F35: =F29/$D$29 -> 0 | G35: =G29/$D$29 -> 0 | H35: =H29/$D$29 -> 0 | I35: =I29/$D$29 -> 0
A36: G-SITUS Factor | D36: =SUM(E36:I36) -> 1 | E36: =E30/$D$30 -> 0 | F36: =F30/$D$30 -> 0.2964371063 | G36: =G30/$D$30 -> 0.7035628937 | H36: =H30/$D$30 -> 0 | I36: =I30/$D$30 -> 0
A37: SO Factor | D37: =SUM(E37:I37) -> 1 | E37: =E31/$D$31 -> 0.4936435016 | F37: =F31/$D$31 -> 0.2431212366 | G37: =G31/$D$31 -> 0.2632352617 | H37: =H31/$D$31 -> 0 | I37: =I31/$D$31 -> 0
A38: G Allocator | D38: =SUM(E38:I38) -> 1 | E38: =E32/$D$32 -> 0.2203833051 | F38: =F32/$D$32 -> 0.339993511 | G38: =G32/$D$32 -> 0.4223969714 | H38: =H32/$D$32 -> 0.0172262126 | I38: =I32/$D$32 -> 0
A39: Total Gen. Plant | D39: =D32 -> 1141071.896
A40: Mining | C40: acct 399 from JAM | D40: ='GROSS PLANT'!D12 -> 201478.356 | E40: =D29 -> 1742.685456 | F40: =SUM(D40+E40) -> 203221.0415
A41: Total | C41: P | D41: =SUM(D39:D40) -> 1342550.252
B44: Functional Allocators: | D44: Prod | E44: Trans | F44: DPW | G44: CUST | H44: DMISC
B45: P | C45: =SUM(D45:H45) -> 1 | D45: ='FORM 1'!$C$13 -> 1 | E45: ='FORM 1'!$D$13 -> 0 | F45: ='FORM 1'!$E$13 -> 0 | G45: ='FORM 1'!$F$13 -> 0 | H45: ='FORM 1'!$G$13 -> 0
B46: T | C46: 1 | D46: ='FORM 1'!$C$14 -> 0 | E46: ='FORM 1'!$D$14 -> 1 | F46: ='FORM 1'!$E$14 -> 0 | G46: ='FORM 1'!$F$14 -> 0 | H46: ='FORM 1'!$G$14 -> 0
B47: TD | C47: 1 | D47: ='FORM 1'!$C$18 -> 0 | E47: ='FORM 1'!$D$18 -> 0.4801384744 | F47: ='FORM 1'!$E$18 -> 0.5198615256 | G47: ='FORM 1'!$F$18 -> 0 | H47: ='FORM 1'!$G$18 -> 0
B48: CUST | C48: 1 | D48: 0 | E48: 0 | F48: 0 | G48: 1 | H48: 0
B49: DPW | C49: 1 | D49: 0 | E49: 0 | F49: 1 | G49: 0 | H49: 0
B50: PTD | C50: 1 | D50: ='FORM 1'!$C$16 -> 0.4936435016 | E50: ='FORM 1'!$D$16 -> 0.2431212366 | F50: ='FORM 1'!$E$16 -> 0.2632352617 | G50: ='FORM 1'!$F$16 -> 0 | H50: ='FORM 1'!$G$16 -> 0
B51: GP | C51: =SUM(D51:H51) -> 1 | D51: =+'GROSS PLANT'!E42 -> 0.4878398213 | E51: =+'GROSS PLANT'!F42 -> 0.243076422 | F51: =+'GROSS PLANT'!G42 -> 0.2632084635 | G51: =+'GROSS PLANT'!H42 -> 0.005875293149 | H51: =+'GROSS PLANT'!I42 -> 0

Sheet INTANGIBLE PLANT
A1: =+'TOTAL FUNCFAC'!A1 -> PacifiCorp
A2: =+'TOTAL FUNCFAC'!A2 -> 12 Months Ended December 2015
A3: Intangible Plant
A4: (In 000's)
A5: Alloc.
A6: Factor | B6: Funct. | C6: Amount | D6: Production | E6: Transmisssion | F6: DPW | G6: Customer | H6: DMSC
A7: CN | B7: CUST | C7: 134387.7561 | D7: =$C7*VLOOKUP(+$B7,$B$39:$H$46,3) -> 0 | E7: =$C7*VLOOKUP(+$B7,$B$39:$H$46,4) -> 0 | F7: =$C7*VLOOKUP(+$B7,$B$39:$H$46,5) -> 0 | G7: =$C7*VLOOKUP(+$B7,$B$39:$H$46,6) -> 134387.7561 | H7: =$C7*VLOOKUP(+$B7,$B$39:$H$46,7) -> 0
A8: SE | B8: P | C8: 1833.747628 | D8: 1833.747628 | E8: 0 | F8: 0 | G8: 0 | H8: 0
A9: SG | B9: P | C9: 114693.0057 | D9: 114693.0057 | E9: 0 | F9: 0 | G9: 0 | H9: 0
A10: SG | B10: T | C10: 56673.31577 | D10: 0 | E10: 56673.31577 | F10: 0 | G10: 0 | H10: 0
A11: SG | B11: P | C11: 172821.2447 | D11: 172821.2447 | E11: 0 | F11: 0 | G11: 0 | H11: 0
A12: SG | B12: P | C12: 9790.35601 | D12: 9790.35601 | E12: 0 | F12: 0 | G12: 0 | H12: 0
A13: SO | B13: CUST | C13: 7766.75064 | D13: 0 | E13: 0 | F13: 0 | G13: 7766.75064 | H13: 0
A14: SO | B14: DPW | C14: 30596.52889 | D14: 0 | E14: 0 | F14: 30596.52889 | G14: 0 | H14: 0
A15: SO | B15: P | C15: 26771.95525 | D15: 26771.95525 | E15: 0 | F15: 0 | G15: 0 | H15: 0
A16: SO | B16: PTD | C16: 286483.4131 | D16: 141420.6752 | E16: 69650.20168 | F16: 75412.53624 | G16: 0 | H16: 0
A17: SO | B17: T | C17: 1175.839388 | D17: 0 | E17: 1175.839388 | F17: 0 | G17: 0 | H17: 0
A18: SO | B18: TD | C18: 12740.98296 | D18: 0 | E18: 6117.436121 | F18: 6623.546839 | G18: 0 | H18: 0
A19: SO | B19: LABOR | C19: 0 | D19: 0 | E19: 0 | F19: 0 | G19: 0 | H19: 0
A20: SO | B20: DMSC | C20: 0 | D20: 0 | E20: 0 | F20: 0 | G20: 0 | H20: 0
A21: SITUS | B21: DPW | C21: 157.6616 | D21: 0 | E21: 0 | F21: 157.6616 | G21: 0 | H21: 0
A22: SITUS | B22: P | C22: -32057.95992 | D22: -32057.95992 | E22: 0 | F22: 0 | G22: 0 | H22: 0
A23: SITUS | B23: PTD | C23: 462.55361 | D23: 228.3365837 | E23: 112.4566057 | F23: 121.7604206 | G23: 0 | H23: 0
A24: SITUS | B24: T | C24: 530.80893 | D24: 0 | E24: 530.80893 | F24: 0 | G24: 0 | H24: 0
A25: SITUS | B25: TD | C25: 13771.22369 | D25: 0 | E25: 6612.094331 | F25: 7159.129355 | G25: 0 | H25: 0
A26: Total-DGP | C26: =SUMIF($A:$A,"SG-P",C:C) -> 0 | D26: 0 | E26: 0 | F26: 0 | G26: 0 | H26: 0
A27: Total-DGU | C27: =SUMIF($A:$A,"SG-U",C:C) -> 0 | D27: 0 | E27: 0 | F27: 0 | G27: 0 | H27: 0
A28: Total-SG | C28: =SUMIF($A:$A,"SG",C:C) -> 353977.9222 | D28: 297304.6064 | E28: 56673.31577 | F28: 0 | G28: 0 | H28: 0
A29: Total-SITUS | C29: =SUMIF($A:$A,"SITUS",C:C) -> -17135.71209 | D29: -31829.62334 | E29: 7255.359867 | F29: 7438.551375 | G29: 0 | H29: 0
A30: Total-Intangible | C30: =SUM(C7:C25) -> 838599.184 | D30: =SUM(D7:D25) -> 435501.3611 | E30: 140872.1528 | F30: 120071.1633 | G30: 142154.5067 | H30: 0
A31: I-DGP FACTOR | C31: =SUM(D31:H31) ->  | D31: =D26/$C$26 ->  | E31: =E26/$C$26 ->  | F31: =F26/$C$26 ->  | G31: =G26/$C$26 ->  | H31: =H26/$C$26 -> 
A32: I-DGU FACTOR | C32: =SUM(D32:H32) ->  | D32: =D27/$C$27 ->  | E32: =E27/$C$27 ->  | F32: =F27/$C$27 ->  | G32: =G27/$C$27 ->  | H32: =H27/$C$27 -> 
A33: I-SG FACTOR | C33: =SUM(D33:H33) -> 1 | D33: =D28/$C$28 -> 0.8398959025 | E33: =E28/$C$28 -> 0.1601040975 | F33: =F28/$C$28 -> 0 | G33: =G28/$C$28 -> 0 | H33: =H28/$C$28 -> 0
A34: I-Situs FACTOR | C34: =SUM(D34:H34) -> 1 | D34: =D29/$C$29 -> 1.857502225 | E34: =E29/$C$29 -> -0.4234057988 | F34: =F29/$C$29 -> -0.4340964259 | G34: =G29/$C$29 -> 0 | H34: =H29/$C$29 -> 0
A35: I FACTOR | C35: =SUM(D35:H35) -> 1 | D35: =D30/$C$30 -> 0.5193200392 | E35: =E30/$C$30 -> 0.1679850822 | F35: =F30/$C$30 -> 0.1431806346 | G35: =G30/$C$30 -> 0.169514244 | H35: =H30/$C$30 -> 0
B38: Functional Allocators: | D38: Prod | E38: Trans | F38: DPW | G38: CUST | H38: DMSC
B39: P | C39: =SUM(D39:H39) -> 1 | D39: ='FORM 1'!$C$13 -> 1 | E39: ='FORM 1'!$D$13 -> 0 | F39: ='FORM 1'!$E$13 -> 0 | G39: ='FORM 1'!$F$13 -> 0 | H39: ='FORM 1'!$G$13 -> 0
B40: T | C40: 1 | D40: ='FORM 1'!$C$14 -> 0 | E40: ='FORM 1'!$D$14 -> 1 | F40: ='FORM 1'!$E$14 -> 0 | G40: ='FORM 1'!$F$14 -> 0 | H40: ='FORM 1'!$G$14 -> 0
B41: TD | C41: 1 | D41: ='FORM 1'!$C$18 -> 0 | E41: ='FORM 1'!$D$18 -> 0.4801384744 | F41: ='FORM 1'!$E$18 -> 0.5198615256 | G41: ='FORM 1'!$F$18 -> 0 | H41: ='FORM 1'!$G$18 -> 0
B42: CUST | C42: 1 | D42: 0 | E42: 0 | F42: 0 | G42: 1 | H42: 0
B43: DPW | C43: 1 | D43: 0 | E43: 0 | F43: 1 | G43: 0 | H43: 0
B44: PTD | C44: 1 | D44: ='FORM 1'!$C$16 -> 0.4936435016 | E44: ='FORM 1'!$D$16 -> 0.2431212366 | F44: ='FORM 1'!$E$16 -> 0.2632352617 | G44: ='FORM 1'!$F$16 -> 0 | H44: ='FORM 1'!$G$16 -> 0
B45: DMSC | C45: 1 | D45: ='TOTAL FUNCFAC'!C16 -> 0 | E45: ='TOTAL FUNCFAC'!D16 -> 0 | F45: ='TOTAL FUNCFAC'!E16 -> 0 | G45: ='TOTAL FUNCFAC'!F16 -> 0 | H45: ='TOTAL FUNCFAC'!G16 -> 1
B46: LABOR | C46: =SUM(D46:H46) -> 1 | D46: ='SCH M'!F144 -> 0.4630936385 | E46: ='SCH M'!G144 -> 0.0788155421 | F46: ='SCH M'!H144 -> 0.3208311752 | G46: ='SCH M'!I144 -> 0.1372596442 | H46: ='SCH M'!J144 -> 0

Sheet SCH M
B1: =+'TOTAL FUNCFAC'!A1 -> PacifiCorp
B2: =+'TOTAL FUNCFAC'!A2 -> 12 Months Ended December 2015
B3: Schedule M
B4: Primary | C4: PITA
B5: Account | C5: Factor | D5: Function | E5: Amount | F5: Production | G5: Transmission | H5: Poles & Wires | I5: Customers | J5: Miscellaneous
B6: ADDITIONS
A7: =IF(C7="","",B7&"-"&C7) -> SCHMAP-SCHMDEXP | B7: SCHMAP | C7: SCHMDEXP | D7: LABOR | E7: 59.46605 | F7: =VLOOKUP($D7,$D$138:$J$150,3,FALSE)*$E7 -> 27.53834946 | G7: =VLOOKUP($D7,$D$138:$J$150,4,FALSE)*$E7 -> 4.686848967 | H7: =VLOOKUP($D7,$D$138:$J$150,5,FALSE)*$E7 -> 19.07856271 | I7: =VLOOKUP($D7,$D$138:$J$150,6,FALSE)*$E7 -> 8.162288863 | J7: =VLOOKUP($D7,$D$138:$J$150,7,FALSE)*$E7 -> 0
A8: =IF(C8="","",B8&"-"&C8) -> SCHMAP-SE | B8: SCHMAP | C8: SE | D8: P | E8: 64.197 | F8: =VLOOKUP($D8,$D$138:$J$150,3,FALSE)*$E8 -> 64.197 | G8: =VLOOKUP($D8,$D$138:$J$150,4,FALSE)*$E8 -> 0 | H8: =VLOOKUP($D8,$D$138:$J$150,5,FALSE)*$E8 -> 0 | I8: =VLOOKUP($D8,$D$138:$J$150,6,FALSE)*$E8 -> 0 | J8: =VLOOKUP($D8,$D$138:$J$150,7,FALSE)*$E8 -> 0
A9: =IF(C9="","",B9&"-"&C9) -> SCHMAP-SO | B9: SCHMAP | C9: SO | D9: P | E9: 766.62601 | F9: =VLOOKUP($D9,$D$138:$J$150,3,FALSE)*$E9 -> 766.62601 | G9: =VLOOKUP($D9,$D$138:$J$150,4,FALSE)*$E9 -> 0 | H9: =VLOOKUP($D9,$D$138:$J$150,5,FALSE)*$E9 -> 0 | I9: =VLOOKUP($D9,$D$138:$J$150,6,FALSE)*$E9 -> 0 | J9: =VLOOKUP($D9,$D$138:$J$150,7,FALSE)*$E9 -> 0
A10: =IF(C10="","",B10&"-"&C10) -> SCHMAP-SO | B10: SCHMAP | C10: SO | D10: LABOR | E10: 0 | F10: =VLOOKUP($D10,$D$138:$J$150,3,FALSE)*$E10 -> 0 | G10: =VLOOKUP($D10,$D$138:$J$150,4,FALSE)*$E10 -> 0 | H10: =VLOOKUP($D10,$D$138:$J$150,5,FALSE)*$E10 -> 0 | I10: =VLOOKUP($D10,$D$138:$J$150,6,FALSE)*$E10 -> 0 | J10: =VLOOKUP($D10,$D$138:$J$150,7,FALSE)*$E10 -> 0
A11: =IF(C11="","",B11&"-"&C11) -> SCHMAP-SO | B11: SCHMAP | C11: SO | D11: PTD | E11: 0 | F11: =VLOOKUP($D11,$D$138:$J$150,3,FALSE)*$E11 -> 0 | G11: =VLOOKUP($D11,$D$138:$J$150,4,FALSE)*$E11 -> 0 | H11: =VLOOKUP($D11,$D$138:$J$150,5,FALSE)*$E11 -> 0 | I11: =VLOOKUP($D11,$D$138:$J$150,6,FALSE)*$E11 -> 0 | J11: =VLOOKUP($D11,$D$138:$J$150,7,FALSE)*$E11 -> 0
A13: =IF(C13="","",B13&"-"&C13) ->  | B13: Total-SO | E13: =SUMIF($A:$A,"SCHMAP-SO",E:E) -> 766.62601 | F13: 766.62601 | G13: 0 | H13: 0 | I13: 0 | J13: 0
A14: =IF(C14="","",B14&"-"&C14) ->  | B14: Total SCHMAP | E14: =SUMIF($B:$B,"SCHMAP",E:E) -> 890.28906 | F14: 858.3613595 | G14: 4.686848967 | H14: 19.07856271 | I14: 8.162288863 | J14: 0
A15: =IF(C15="","",B15&"-"&C15) ->  | B15: SCHMAP-SO | E15: =SUM(F15:J15) -> 1 | F15: =IF(ISERROR(F13/$E13)," ",(F13/$E13)) -> 1 | G15: 0 | H15: 0 | I15: 0 | J15: 0
A16: =IF(C16="","",B16&"-"&C16) ->  | B16: SCHMAP FACTOR | E16: =SUM(F16:J16) -> 1 | F16: 0.9641378267 | G16: 0.005264412625 | H16: 0.02142962726 | I16: 0.009168133396 | J16: 0
A18: =IF(C18="","",B18&"-"&C18) -> SCHMAT-CIAC | B18: SCHMAT | C18: CIAC | D18: DPW | E18: 108326.668 | F18: =VLOOKUP($D18,$D$138:$J$150,3,FALSE)*$E18 -> 0 | G18: =VLOOKUP($D18,$D$138:$J$150,4,FALSE)*$E18 -> 0 | H18: =VLOOKUP($D18,$D$138:$J$150,5,FALSE)*$E18 -> 108326.668 | I18: =VLOOKUP($D18,$D$138:$J$150,6,FALSE)*$E18 -> 0 | J18: =VLOOKUP($D18,$D$138:$J$150,7,FALSE)*$E18 -> 0
A19: SCHMAT-BADDEBT | B19: SCHMAT | C19: BADDEBT | D19: CUST | E19: -95.3410001 | F19: 0 | G19: 0 | H19: 0 | I19: -95.3410001 | J19: 0
A20: SCHMAT-SCHMDEXP | B20: SCHMAT | C20: SCHMDEXP | D20: GP | E20: 768720 | F20: 375012.2275 | G20: 186857.7071 | H20: 202333.6101 | I20: 4516.45535 | J20: 0
A21: =IF(C21="","",B21&"-"&C21) -> SCHMAT-GPS | B21: SCHMAT | C21: GPS | D21: GP | E21: 231.066 | F21: 112.7231962 | G21: 56.16669653 | H21: 60.81852682 | I21: 1.357580487 | J21: 0
A22: =IF(C22="","",B22&"-"&C22) -> SCHMAT-SE | B22: SCHMAT | C22: SE | D22: LABOR | F22: 0 | G22: 0 | H22: 0 | I22: 0 | J22: 0
A23: SCHMAT-SE | B23: SCHMAT | C23: SE | D23: P | E23: -73161.2 | F23: -73161.2 | G23: 0 | H23: 0 | I23: 0 | J23: 0
A24: SCHMAT-SG | B24: SCHMAT | C24: SG | D24: DPW | F24: 0 | G24: 0 | H24: 0 | I24: 0 | J24: 0
A25: =IF(C25="","",B25&"-"&C25) -> SCHMAT-SG | B25: SCHMAT | C25: SG | D25: P | E25: 1657.394 | F25: 1657.394 | G25: 0 | H25: 0 | I25: 0 | J25: 0
A26: SCHMAT-SG | B26: SCHMAT | C26: SG | D26: T | F26: 0 | G26: 0 | H26: 0 | I26: 0 | J26: 0
A27: SCHMAT-SGCT | B27: SCHMAT | C27: SGCT | D27: P | E27: 1122.425 | F27: 1122.425 | G27: 0 | H27: 0 | I27: 0 | J27: 0
A28: SCHMAT-SNP | B28: SCHMAT | C28: SNP | D28: GP | E28: 832.212 | F28: 405.9861534 | G28: 202.2911153 | H28: 219.0452418 | I28: 4.889489462 | J28: 0
A29: SCHMAT-SNP | B29: SCHMAT | C29: SNP | D29: PTD | E29: 23148.805 | F29: 11427.25716 | G29: 5627.966098 | H29: 6093.581743 | I29: 0 | J29: 0
A30: SCHMAT-SNPD | B30: SCHMAT | C30: SNPD | D30: DPW | E30: 1386.597 | F30: 0 | G30: 0 | H30: 1386.597 | I30: 0 | J30: 0
A31: =IF(C31="","",B31&"-"&C31) -> SCHMAT-SO | B31: SCHMAT | C31: SO | D31: DMSC | F31: 0 | G31: 0 | H31: 0 | I31: 0 | J31: 0
A32: =IF(C32="","",B32&"-"&C32) -> SCHMAT-SO | B32: SCHMAT | C32: SO | D32: LABOR | E32: 33908.08301 | F32: 15702.61754 | G32: 2672.483944 | H32: 10878.77012 | I32: 4654.211408 | J32: 0
A33: SCHMAT-SO | B33: SCHMAT | C33: SO | D33: PTD | E33: 8020.112 | F33: 3959.076171 | G33: 1949.859547 | H33: 2111.176281 | I33: 0 | J33: 0
A34: =IF(C34="","",B34&"-"&C34) -> SCHMAT-OTHER | B34: SCHMAT | C34: OTHER | D34: DMSC | E34: 4357.285 | F34: 0 | G34: 0 | H34: 0 | I34: 0 | J34: 4357.285
A35: =IF(C35="","",B35&"-"&C35) -> SCHMAT-OTHER | B35: SCHMAT | C35: OTHER | D35: GP | F35: 0 | G35: 0 | H35: 0 | I35: 0 | J35: 0
A36: SCHMAT-OTHER | B36: SCHMAT | C36: OTHER | D36: P | E36: 13599.354 | F36: 13599.354 | G36: 0 | H36: 0 | I36: 0 | J36: 0
A37: SCHMAT-OTHER | B37: SCHMAT | C37: OTHER | D37: PTD | E37: 19974.903 | F37: 9860.481061 | G37: 4856.323119 | H37: 5258.098819 | I37: 0 | J37: 0
A38: SCHMAT-TROJD | B38: SCHMAT | C38: TROJD | D38: P | E38: -36.847 | F38: -36.847 | G38: 0 | H38: 0 | I38: 0 | J38: 0
A39: SCHMAT-SITUS | B39: SCHMAT | C39: SITUS | D39: DMSC | F39: 0 | G39: 0 | H39: 0 | I39: 0 | J39: 0
A40: SCHMAT-SITUS | B40: SCHMAT | C40: SITUS | D40: DPW | E40: 311.715 | F40: 0 | G40: 0 | H40: 311.715 | I40: 0 | J40: 0
A41: SCHMAT-SITUS | B41: SCHMAT | C41: SITUS | D41: ESD | E41: 206.865 | F41: 62.0595 | G41: 20.6865 | H41: 124.119 | I41: 0 | J41: 0
A42: SCHMAT-SITUS | B42: SCHMAT | C42: SITUS | D42: GP | F42: 0 | G42: 0 | H42: 0 | I42: 0 | J42: 0
A43: SCHMAT-SITUS | B43: SCHMAT | C43: SITUS | D43: LABOR | E43: 3601.308 | F43: 1667.742825 | G43: 283.8390423 | H43: 1155.411878 | I43: 494.3142546 | J43: 0
A44: SCHMAT-SITUS | B44: SCHMAT | C44: SITUS | D44: P | E44: 3561.818 | F44: 3561.818 | G44: 0 | H44: 0 | I44: 0 | J44: 0
A45: SCHMAT-SITUS | B45: SCHMAT | C45: SITUS | D45: PTD | E45: -1035.34 | F45: -511.088863 | G45: -251.7131411 | H45: -272.5379959 | I45: 0 | J45: 0
A46: SCHMAT-SITUS | B46: SCHMAT | C46: SITUS | D46: T | F46: 0 | G46: 0 | H46: 0 | I46: 0 | J46: 0
B47: Total-SE | E47: =SUMIF($A:$A,"SCHMAT-SE",E:E) -> -73161.2 | F47: -73161.2 | G47: 0 | H47: 0 | I47: 0 | J47: 0
A48: =IF(C48="","",B48&"-"&C48) ->  | B48: Total-SNP | E48: =SUMIF($A:$A,"SCHMAT-SNP",E:E) -> 23981.017 | F48: 11833.24331 | G48: 5830.257214 | H48: 6312.626985 | I48: 4.889489462 | J48: 0
B49: Total-SITUS | E49: =SUMIF($A:$A,"SCHMAT-SITUS",E:E) -> 6646.366 | F49: 4780.531462 | G49: 52.81240113 | H49: 1318.707882 | I49: 494.3142546 | J49: 0
B50: Total-SO | E50: =SUMIF($A:$A,"SCHMAT-SO",E:E) -> 41928.19501 | F50: 19661.69371 | G50: 4622.343491 | H50: 12989.9464 | I50: 4654.211408 | J50: 0
B51: Total-SCHMAT | E51: =SUMIF($B:$B,"SCHMAT",E:E) -> 918637.882 | F51: 364442.0262 | G51: 202275.6101 | H51: 337987.0737 | I51: 9575.887082 | J51: 4357.285
B52: SCHMAT-SE | E52: =SUM(F52:J52) -> 1 | F52: =IF(ISERROR(F47/$E47)," ",(F47/$E47)) -> 1 | G52: 0 | H52: 0 | I52: 0 | J52: 0
B53: SCHMAT-SNP | E53: =SUM(F53:J53) -> 1 | F53: 0.4934420968 | G53: 0.2431196814 | H53: 0.2632343318 | I53: 0.0002038899961 | J53: 0
B54: SCHMAT-SITUS | E54: =SUM(F54:J54) -> 1 | F54: 0.7192699683 | G54: 0.007946056707 | H54: 0.1984103617 | I54: 0.07437361328 | J54: 0
B55: SCHMAT-SO | E55: =SUM(F55:J55) -> 1 | F55: 0.4689372796 | G55: 0.1102442757 | H55: 0.3098141096 | I55: 0.1110043351 | J55: 0
B56: SCHMAT FACTOR | E56: =SUM(F56:J56) -> 1 | F56: 0.3967200062 | G56: 0.2201907999 | H56: 0.3679219857 | I56: 0.01042400631 | J56: 0.004743201957
A58: =IF(C58="","",B58&"-"&C58) -> SCHMAF-DGP | B58: SCHMAF | C58: DGP | D58: P | E58: 0 | F58: =VLOOKUP($D58,$D$138:$J$150,3,FALSE)*$E58 -> 0 | G58: =VLOOKUP($D58,$D$138:$J$150,4,FALSE)*$E58 -> 0 | H58: =VLOOKUP($D58,$D$138:$J$150,5,FALSE)*$E58 -> 0 | I58: =VLOOKUP($D58,$D$138:$J$150,6,FALSE)*$E58 -> 0 | J58: =VLOOKUP($D58,$D$138:$J$150,7,FALSE)*$E58 -> 0
A59: =IF(C59="","",B59&"-"&C59) -> SCHMAF-TROJP | B59: SCHMAF | C59: TROJP | D59: P | E59: 0 | F59: =VLOOKUP($D59,$D$138:$J$150,3,FALSE)*$E59 -> 0 | G59: =VLOOKUP($D59,$D$138:$J$150,4,FALSE)*$E59 -> 0 | H59: =VLOOKUP($D59,$D$138:$J$150,5,FALSE)*$E59 -> 0 | I59: =VLOOKUP($D59,$D$138:$J$150,6,FALSE)*$E59 -> 0 | J59: =VLOOKUP($D59,$D$138:$J$150,7,FALSE)*$E59 -> 0
A60: =IF(C60="","",B60&"-"&C60) ->  | B60: Total-SCHMAF | E60: =SUMIF($A:$A,"SCHMAF",E:E) -> 0 | F60: 0 | G60: 0 | H60: 0 | I60: 0 | J60: 0
B61: SCHMAF FACTOR | E61: =SUM(F61:J61) -> 0 | F61: =IF(ISERROR(F60/$E60)," ",(F60/$E60)) ->  | G61: =IF(ISERROR(G60/$E60)," ",(G60/$E60)) ->  | H61: =IF(ISERROR(H60/$E60)," ",(H60/$E60)) ->  | I61: =IF(ISERROR(I60/$E60)," ",(I60/$E60)) ->  | J61: =IF(ISERROR(J60/$E60)," ",(J60/$E60)) -> 
B63: Total-SCHMA | E63: =SUM(E60,E51,E14) -> 919528.1711 | F63: 365300.3876 | G63: 202280.2969 | H63: 338006.1522 | I63: 9584.049371 | J63: 4357.285
B64: SCHMA FACTOR | E64: =SUM(F64:J64) -> 1 | F64: =IF(ISERROR(F63/$E63)," ",(F63/$E63)) -> 0.3972693812 | G64: =IF(ISERROR(G63/$E63)," ",(G63/$E63)) -> 0.2199827077 | H64: =IF(ISERROR(H63/$E63)," ",(H63/$E63)) -> 0.3675865111 | I64: =IF(ISERROR(I63/$E63)," ",(I63/$E63)) -> 0.01042279038 | J64: =IF(ISERROR(J63/$E63)," ",(J63/$E63)) -> 0.004738609579
B66: DEDUCTIONS
A67: SCHMDP-SCHMDEXP | B67: SCHMDP | C67: SCHMDEXP | D67: LABOR | E67: -17.16796 | F67: =VLOOKUP($D67,$D$138:$J$150,3,FALSE)*$E67 -> -7.950373062 | G67: =VLOOKUP($D67,$D$138:$J$150,4,FALSE)*$E67 -> -1.353102074 | H67: =VLOOKUP($D67,$D$138:$J$150,5,FALSE)*$E67 -> -5.508016783 | I67: =VLOOKUP($D67,$D$138:$J$150,6,FALSE)*$E67 -> -2.356468081 | J67: =VLOOKUP($D67,$D$138:$J$150,7,FALSE)*$E67 -> 0
A68: SCHMDP-SE | B68: SCHMDP | C68: SE | D68: P | E68: 646.675 | F68: 646.675 | G68: 0 | H68: 0 | I68: 0 | J68: 0
A69: SCHMDP-SG | B69: SCHMDP | C69: SG | D69: P | E69: 15808.34899 | F69: 15808.34899 | G69: 0 | H69: 0 | I69: 0 | J69: 0
A70: SCHMDP-SNP | B70: SCHMDP | C70: SNP | D70: PTD | E70: 64.76 | F70: 31.96835316 | G70: 15.74453128 | H70: 17.04711555 | I70: 0 | J70: 0
A71: SCHMDP-SO | B71: SCHMDP | C71: SO | D71: LABOR | E71: -29.933 | F71: -13.86178188 | G71: -2.359185622 | H71: -9.603439568 | I71: -4.108592929 | J71: 0
A72: SCHMDP-SITUS | B72: SCHMDP | C72: SITUS | D72: PTD | F72: 0 | G72: 0 | H72: 0 | I72: 0 | J72: 0
B73: Total-SO | E73: =SUMIF($A:$A,"SCHMDP-SO",E:E) -> -29.933 | F73: -13.86178188 | G73: -2.359185622 | H73: -9.603439568 | I73: -4.108592929 | J73: 0
B74: Total-SCHMDP | E74: =SUMIF($B:$B,"SCHMDP",E:E) -> 16472.68303 | F74: 16465.18019 | G74: 12.03224359 | H74: 1.935659199 | I74: -6.465061009 | J74: 0
B75: SCHMDP-SO | E75: =SUM(F75:J75) -> 1 | F75: =IF(ISERROR(F73/$E73)," ",(F73/$E73)) -> 0.4630936385 | G75: 0.0788155421 | H75: 0.3208311752 | I75: 0.1372596442 | J75: 0
B76: SCHMDP FACTOR | E76: =SUM(F76:J76) -> 1 | F76: 0.9995445282 | G76: 0.0007304361753 | H76: 0.0001175072206 | I76: -0.0003924716452 | J76: 0
A78: SCHMDT-BADDEBT | B78: SCHMDT | C78: BADDEBT | D78: CUST | F78: =VLOOKUP($D78,$D$138:$J$150,3,FALSE)*$E78 -> 0 | G78: =VLOOKUP($D78,$D$138:$J$150,4,FALSE)*$E78 -> 0 | H78: =VLOOKUP($D78,$D$138:$J$150,5,FALSE)*$E78 -> 0 | I78: =VLOOKUP($D78,$D$138:$J$150,6,FALSE)*$E78 -> 0 | J78: =VLOOKUP($D78,$D$138:$J$150,7,FALSE)*$E78 -> 0
A79: SCHMDT-CN | B79: SCHMDT | C79: CN | D79: CUST | F79: 0 | G79: 0 | H79: 0 | I79: 0 | J79: 0
A80: SCHMDT-GPS | B80: SCHMDT | C80: GPS | D80: GP | E80: 0 | F80: 0 | G80: 0 | H80: 0 | I80: 0 | J80: 0
A81: SCHMDT-GPS | B81: SCHMDT | C81: GPS | D81: P | F81: 0 | G81: 0 | H81: 0 | I81: 0 | J81: 0
A82: SCHMDT-GPS | B82: SCHMDT | C82: GPS | D82: PTD | E82: -40012.756 | F82: -19752.03698 | G82: -9727.95072 | H82: -10532.7683 | I82: 0 | J82: 0
A83: SCHMDT-SG | B83: SCHMDT | C83: SG | D83: P | E83: 206416.158 | F83: 206416.158 | G83: 0 | H83: 0 | I83: 0 | J83: 0
A84: =IF(C84="","",B84&"-"&C84) -> SCHMDT-SG | B84: SCHMDT | C84: SG | D84: T | E84: 119.705 | F84: 0 | G84: 119.705 | H84: 0 | I84: 0 | J84: 0
A85: SCHMDT-SE | B85: SCHMDT | C85: SE | D85: P | E85: 30456.547 | F85: 30456.547 | G85: 0 | H85: 0 | I85: 0 | J85: 0
A86: =IF(C86="","",B86&"-"&C86) -> SCHMDT-SNPD | B86: SCHMDT | C86: SNPD | D86: DPW | E86: 50.905 | F86: 0 | G86: 0 | H86: 50.905 | I86: 0 | J86: 0
A87: SCHMDT-SNP | B87: SCHMDT | C87: SNP | D87: PTD | E87: 50212.205 | F87: 24786.9287 | G87: 12207.65337 | H87: 13217.62293 | I87: 0 | J87: 0
A88: SCHMDT-SO | B88: SCHMDT | C88: SO | D88: ESD | E88: 4624.874 | F88: 1387.4622 | G88: 462.4874 | H88: 2774.9244 | I88: 0 | J88: 0
A89: SCHMDT-SO | B89: SCHMDT | C89: SO | D89: GP | E89: 24490.288 | F89: 11947.33772 | G89: 5953.011581 | H89: 6446.051075 | I89: 143.8876213 | J89: 0
A90: SCHMDT-SO | B90: SCHMDT | C90: SO | D90: LABOR | E90: 34219.452 | F90: 15846.81053 | G90: 2697.02466 | H90: 10978.667 | I90: 4696.949805 | J90: 0
A91: SCHMDT-SO | B91: SCHMDT | C91: SO | D91: PTD | E91: -21185.503 | F91: -10458.08588 | G91: -5150.645688 | H91: -5576.771427 | I91: 0 | J91: 0
A92: =IF(C92="","",B92&"-"&C92) -> SCHMDT-OTHER | B92: SCHMDT | C92: OTHER | D92: CUST | E92: 1.728 | F92: 0 | G92: 0 | H92: 0 | I92: 1.728 | J92: 0
A93: SCHMDT-OTHER | B93: SCHMDT | C93: OTHER | D93: DDS2 | E93: -2.212 | F93: -2.141779414 | G93: 0.008836821983 | H93: 0.03659695621 | I93: -0.1146522977 | J93: -0.001002066644
A94: =IF(C94="","",B94&"-"&C94) -> SCHMDT-OTHER | B94: SCHMDT | C94: OTHER | D94: DMSC | E94: 871.453 | F94: 0 | G94: 0 | H94: 0 | I94: 0 | J94: 871.453
A95: SCHMDT-OTHER | B95: SCHMDT | C95: OTHER | D95: DPW | E95: 368.684 | F95: 0 | G95: 0 | H95: 368.684 | I95: 0 | J95: 0
A96: SCHMDT-OTHER | B96: SCHMDT | C96: OTHER | D96: LABOR | E96: -3937.709 | F96: -1823.527988 | G96: -310.3526695 | H96: -1263.339806 | I96: -540.4885362 | J96: 0
A97: SCHMDT-OTHER | B97: SCHMDT | C97: OTHER | D97: P | E97: -59544.117 | F97: -59544.117 | G97: 0 | H97: 0 | I97: 0 | J97: 0
A98: SCHMDT-OTHER | B98: SCHMDT | C98: OTHER | D98: PT | F98: 0 | G98: 0 | H98: 0 | I98: 0 | J98: 0
A99: =IF(C99="","",B99&"-"&C99) -> SCHMDT-OTHER | B99: SCHMDT | C99: OTHER | D99: GP | E99: -769.785 | F99: -375.5317769 | G99: -187.1165835 | H99: -202.6139271 | I99: -4.522712537 | J99: 0
A100: SCHMDT-TAXDEPR | B100: SCHMDT | C100: TAXDEPR | D100: TAXDEPR | E100: 1137695.628 | F100: 428954.5436 | G100: 411581.5741 | H100: 291180.1205 | I100: 5979.389813 | J100: 0
A101: SCHMDT-SITUS | B101: SCHMDT | C101: SITUS | D101: DMSC | E101: 1955.436 | F101: 0 | G101: 0 | H101: 0 | I101: 0 | J101: 1955.436
A102: =IF(C102="","",B102&"-"&C102) -> SCHMDT-SITUS | B102: SCHMDT | C102: SITUS | D102: DDS2 | E102: 1087.071 | F102: 1052.561614 | G102: -4.342790646 | H102: -17.9853028 | I102: 56.34502167 | J102: 0.4924582226
A103: SCHMDT-SITUS | B103: SCHMDT | C103: SITUS | D103: GP | E103: 69.853 | F103: 34.07707504 | G103: 16.97961731 | H103: 18.3859008 | I103: 0.4104068523 | J103: 0
A104: SCHMDT-SITUS | B104: SCHMDT | C104: SITUS | D104: LABOR | E104: 1106.554 | F104: 512.4381181 | G104: 87.21365337 | H104: 355.0170203 | I104: 151.8852083 | J104: 0
A105: SCHMDT-SITUS | B105: SCHMDT | C105: SITUS | D105: P | E105: -7233.499 | F105: -7233.499 | G105: 0 | H105: 0 | I105: 0 | J105: 0
A106: SCHMDT-SITUS | B106: SCHMDT | C106: SITUS | D106: PTD | E106: 17.126 | F106: 8.454138609 | G106: 4.163694299 | H106: 4.508167093 | I106: 0 | J106: 0
B107: Total-GPS | E107: =SUMIF($A:$A,"SCHMDT-GPS",E:E) -> -40012.756 | F107: -19752.03698 | G107: -9727.95072 | H107: -10532.7683 | I107: 0 | J107: 0
A108: =IF(C108="","",B108&"-"&C108) ->  | B108: Total-CN | E108: =SUMIF($A:$A,"SCHMDT-CN",E:E) -> 0 | F108: 0 | G108: 0 | H108: 0 | I108: 0 | J108: 0
B109: Total-SG | E109: =SUMIF($A:$A,"SCHMDT-SG",E:E) -> 206535.863 | F109: 206416.158 | G109: 119.705 | H109: 0 | I109: 0 | J109: 0
A110: =IF(C110="","",B110&"-"&C110) ->  | B110: Total-SE | E110: =SUMIF($A:$A,"SCHMDT-SE",E:E) -> 30456.547 | F110: 30456.547 | G110: 0 | H110: 0 | I110: 0 | J110: 0
B111: Total-SNP | E111: =SUMIF($A:$A,"SCHMDT-SNP",E:E) -> 50212.205 | F111: 24786.9287 | G111: 12207.65337 | H111: 13217.62293 | I111: 0 | J111: 0
B112: Total SO | E112: =SUMIF($A:$A,"SCHMDT-SO",E:E) -> 42149.111 | F112: 18723.52457 | G112: 3961.877953 | H112: 14622.87105 | I112: 4840.837426 | J112: 0
A113: =IF(C113="","",B113&"-"&C113) ->  | B113: Total OTHER | E113: =SUMIF($A:$A,"SCHMDT-OTHER",E:E) -> -63011.958 | F113: -61745.31854 | G113: -497.4604162 | H113: -1097.233136 | I113: -543.397901 | J113: 871.4519979
A114: =IF(C114="","",B114&"-"&C114) ->  | B114: Total TAXDEPR | E114: =SUMIF($A:$A,"SCHMDT-TAXDEPR",E:E) -> 1137695.628 | F114: 428954.5436 | G114: 411581.5741 | H114: 291180.1205 | I114: 5979.389813 | J114: 0
B115: Total-SITUS | E115: =SUMIF($A:$A,"SCHMDT-SITUS",E:E)+SUMIF($A:$A,"SCHMDT-CN",E:E) -> -2997.459 | F115: -5625.968055 | G115: 104.0141743 | H115: 359.9257854 | I115: 208.6406368 | J115: 1955.928458
B116: Total SCHMDT | E116: =SUMIF($B:$B,"SCHMDT",E:E) -> 1361078.086 | F116: 622214.3783 | G116: 417749.4134 | H116: 307801.4439 | I116: 10485.46998 | J116: 2827.380456
B117: SCHMDT-GPS | E117: =SUM(F117:J117) -> 1 | F117: =IF(ISERROR(F107/$E107)," ",(F107/$E107)) -> 0.4936435016 | G117: 0.2431212366 | H117: 0.2632352617 | I117: 0 | J117: 0
A118: =IF(C118="","",B118&"-"&C118) ->  | B118: SCHMDT-CN | E118: =SUM(F118:J118) -> 0
B119: SCHMDT-SG | E119: =SUM(F119:J119) -> 1 | F119: 0.9994204154 | G119: 0.0005795845731 | H119: 0 | I119: 0 | J119: 0
A120: =IF(C120="","",B120&"-"&C120) ->  | B120: SCHMDT-SE | E120: =SUM(F120:J120) -> 1 | F120: 1 | G120: 0 | H120: 0 | I120: 0 | J120: 0
B121: SCHMDT-SNP | E121: 1 | F121: 0.4936435016 | G121: 0.2431212366 | H121: 0.2632352617 | I121: 0 | J121: 0
B122: SCHMDT-SO | E122: 1 | F122: 0.4442211028 | G122: 0.09399671449 | H122: 0.3469318973 | I122: 0.1148502854 | J122: 0
A123: =IF(C123="","",B123&"-"&C123) ->  | B123: SCHMDT-OTHER | E123: =SUM(F123:J123) -> 1 | F123: 0.9798984273 | G123: 0.007894698593 | H123: 0.01741309382 | I123: 0.008623726642 | J123: -0.01382994634
A124: =IF(C124="","",B124&"-"&C124) ->  | B124: SCHMDT-TAXDEPR | E124: =SUM(F124:J124) -> 1 | F124: 0.3770380522 | G124: 0.3617677382 | H124: 0.2559385071 | I124: 0.00525570255 | J124: 0
A125: =IF(C125="","",B125&"-"&C125) ->  | B125: SCHMDT-SITUS | E125: 1 | F125: =IF(ISERROR(F115/$E115)," ",(F115/$E115)) -> 1.87691243 | G125: -0.03470078301 | H125: -0.120076967 | I125: -0.06960583508 | J125: -0.6525288447
B126: SCHMDT FACTOR | E126: 1 | F126: 0.4571481862 | G126: 0.3069253834 | H126: 0.2261453234 | I126: 0.007703797514 | J126: 0.002077309513
A128: SCHMDF-DGP | B128: SCHMDF | C128: DGP | D128: P | E128: 0 | F128: =VLOOKUP($D128,$D$138:$J$150,3,FALSE)*$E128 -> 0 | G128: =VLOOKUP($D128,$D$138:$J$150,4,FALSE)*$E128 -> 0 | H128: =VLOOKUP($D128,$D$138:$J$150,5,FALSE)*$E128 -> 0 | I128: =VLOOKUP($D128,$D$138:$J$150,6,FALSE)*$E128 -> 0 | J128: =VLOOKUP($D128,$D$138:$J$150,7,FALSE)*$E128 -> 0
B129: Total-SCHMDF | E129: =SUMIF($A:$A,"SCHMDF",E:E) -> 0 | F129: 0 | G129: 0 | H129: 0 | I129: 0 | J129: 0
B130: SCHMDF FACTOR | E130: =SUM(F130:J130) -> 0 | F130: =IF(ISERROR(F129/$E129)," ",(F129/$E129)) ->  | G130: =IF(ISERROR(G129/$E129)," ",(G129/$E129)) ->  | H130: =IF(ISERROR(H129/$E129)," ",(H129/$E129)) ->  | I130: =IF(ISERROR(I129/$E129)," ",(I129/$E129)) ->  | J130: =IF(ISERROR(J129/$E129)," ",(J129/$E129)) -> 
B132: Total-SCHMD | E132: =SUM(E129,E116,E74) -> 1377550.769 | F132: 638679.5585 | G132: 417761.4457 | H132: 307803.3795 | I132: 10479.00491 | J132: 2827.380456
B133: SCHMD FACTOR | E133: =SUM(F133:J133) -> 1 | F133: =IF(ISERROR(F132/$E132)," ",(F132/$E132)) -> 0.4636341345 | G133: =IF(ISERROR(G132/$E132)," ",(G132/$E132)) -> 0.3032639196 | H133: =IF(ISERROR(H132/$E132)," ",(H132/$E132)) -> 0.2234424941 | I133: =IF(ISERROR(I132/$E132)," ",(I132/$E132)) -> 0.007606982733 | J133: =IF(ISERROR(J132/$E132)," ",(J132/$E132)) -> 0.00205246915
B135: Net SCHM
E137: Total | F137: Production | G137: Transmission | H137: Poles & Wires | I137: Customers | J137: Miscellaneous
D138: DMSC | E138: =SUM(F138:J138) -> 1 | F138: 0 | G138: 0 | H138: 0 | I138: 0 | J138: 1
D139: DPW | E139: =SUM(F139:J139) -> 1 | F139: 0 | G139: 0 | H139: 1 | I139: 0 | J139: 0
D140: DDS2 | E140: 1 | F140: =DDS!F34 -> 0.9682547079 | G140: =DDS!G34 -> -0.003994946647 | H140: =DDS!H34 -> -0.01654473608 | I140: =DDS!I34 -> 0.051831961 | J140: =DDS!J34 -> 0.0004530138533
D141: CUST | E141: 1 | F141: 0 | G141: 0 | H141: 0 | I141: 1 | J141: 0
D142: ESD | E142: 1 | F142: 0.3 | G142: 0.1 | H142: 0.6 | I142: 0 | J142: 0
D143: GP | E143: 1 | F143: ='GROSS PLANT'!E42 -> 0.4878398213 | G143: ='GROSS PLANT'!F42 -> 0.243076422 | H143: ='GROSS PLANT'!G42 -> 0.2632084635 | I143: ='GROSS PLANT'!H42 -> 0.005875293149 | J143: ='GROSS PLANT'!I42 -> 0
D144: LABOR | E144: 1 | F144: ='FORM 1'!C25 -> 0.4630936385 | G144: ='FORM 1'!D25 -> 0.0788155421 | H144: ='FORM 1'!E25 -> 0.3208311752 | I144: ='FORM 1'!F25 -> 0.1372596442 | J144: ='FORM 1'!G25 -> 0
D145: P | E145: 1 | F145: ='FORM 1'!C13 -> 1 | G145: ='FORM 1'!D13 -> 0 | H145: ='FORM 1'!E13 -> 0 | I145: ='FORM 1'!F13 -> 0 | J145: ='FORM 1'!G13 -> 0
D146: PT | E146: =SUM(F146:J146) -> 1 | F146: =+'FORM 1'!C17 -> 0.6700151025 | G146: =+'FORM 1'!D17 -> 0.3299848975 | H146: 0 | I146: 0 | J146: 0
D147: PTD | E147: 1 | F147: ='FORM 1'!C16 -> 0.4936435016 | G147: ='FORM 1'!D16 -> 0.2431212366 | H147: ='FORM 1'!E16 -> 0.2632352617 | I147: ='FORM 1'!F16 -> 0 | J147: ='FORM 1'!G16 -> 0
D148: T | E148: 1 | F148: ='FORM 1'!C14 -> 0 | G148: ='FORM 1'!D14 -> 1 | H148: ='FORM 1'!E14 -> 0 | I148: ='FORM 1'!F14 -> 0 | J148: ='FORM 1'!G14 -> 0
D149: TAXDEPR | E149: 1 | F149: ='TAX DEPR'!C24 -> 0.3770380522 | G149: ='TAX DEPR'!D24 -> 0.3617677382 | H149: ='TAX DEPR'!E24 -> 0.2559385071 | I149: ='TAX DEPR'!F24 -> 0.00525570255 | J149: ='TAX DEPR'!G24 -> 0
D150: TD | E150: 1 | F150: ='FORM 1'!C18 -> 0 | G150: ='FORM 1'!D18 -> 0.4801384744 | H150: ='FORM 1'!E18 -> 0.5198615256 | I150: ='FORM 1'!F18 -> 0 | J150: ='FORM 1'!G18 -> 0

Sheet DDS
B1: =+'TOTAL FUNCFAC'!A1 -> PacifiCorp
B2: =+'TOTAL FUNCFAC'!A2 -> 12 Months Ended December 2015
B3: Reg Assets / Deferred Debits
B5: Pri-Acct | C5: Factor | D5: Function | E5: Total | F5: Production | G5: Transmission | H5: DPW | I5: CUST | J5: DMSC
A6: ="RA"&"-"&C6 -> RA-SE | B6: 182M | C6: SE | D6: P | E6: 164495.9762 | F6: =VLOOKUP($D6,$D$71:$J$83,3,FALSE)*$E6 -> 164495.9762 | G6: =VLOOKUP($D6,$D$71:$J$83,4,FALSE)*$E6 -> 0 | H6: =VLOOKUP($D6,$D$71:$J$83,5,FALSE)*$E6 -> 0 | I6: =VLOOKUP($D6,$D$71:$J$83,6,FALSE)*$E6 -> 0 | J6: =VLOOKUP($D6,$D$71:$J$83,7,FALSE)*$E6 -> 0
A7: RA-SG | B7: 182M | C7: SG | D7: P | E7: 2338.3855 | F7: 2338.3855 | G7: 0 | H7: 0 | I7: 0 | J7: 0
A8: RA-SGCT | B8: 182M | C8: SGCT | D8: P | E8: 0 | F8: 0 | G8: 0 | H8: 0 | I8: 0 | J8: 0
A9: RA-SG-P | B9: 182M | C9: SG-P | D9: P | E9: 0 | F9: 0 | G9: 0 | H9: 0 | I9: 0 | J9: 0
A10: RA-SO | B10: 182M | C10: SO | D10: DMSC | E10: 3855.766192 | F10: 0 | G10: 0 | H10: 0 | I10: 0 | J10: 3855.766192
A11: RA-SO | B11: 182M | C11: SO | D11: LABOR | E11: 473971.5111 | F11: 219493.1916 | G11: 37356.32159 | H11: 152064.8369 | I11: 65057.16096 | J11: 0
A12: RA-SO | B12: 182M | C12: SO | D12: ESD | E12: 16960.08683 | F12: 5088.026048 | G12: 1696.008683 | H12: 10176.0521 | I12: 0 | J12: 0
A13: RA-SO | B13: 182M | C13: SO | D13: P | E13: 0 | F13: 0 | G13: 0 | H13: 0 | I13: 0 | J13: 0
A14: RA-SO | B14: 182M | C14: SO | D14: TD | E14: 0 | F14: 0 | G14: 0 | H14: 0 | I14: 0 | J14: 0
A15: ="RA"&"-"&C15 -> RA-OTHER | B15: 182M | C15: OTHER | D15: CUST | E15: 10541.95692 | F15: 0 | G15: 0 | H15: 0 | I15: 10541.95692 | J15: 0
A16: ="RA"&"-"&C16 -> RA-OTHER | B16: 182M | C16: OTHER | D16: DMSC | E16: 6681.381231 | F16: 0 | G16: 0 | H16: 0 | I16: 0 | J16: 6681.381231
A17: RA-OTHER | B17: 182M | C17: OTHER | D17: LABOR | E17: 2615.681735 | F17: 1211.305572 | G17: 206.1563739 | H17: 839.192245 | I17: 359.0275441 | J17: 0
A18: RA-OTHER | B18: 182M | C18: OTHER | D18: P | E18: 153404.8381 | F18: 153404.8381 | G18: 0 | H18: 0 | I18: 0 | J18: 0
A19: RA-OTHER | B19: 182M | C19: OTHER | D19: DPW | E19: -374.7331046 | F19: 0 | G19: 0 | H19: -374.7331046 | I19: 0 | J19: 0
A20: RA-OTHER | B20: 182M | C20: OTHER | D20: PTD | E20: 367.4790092 | F20: 181.4036249 | G20: 89.34195116 | H20: 96.73343318 | I20: 0 | J20: 0
A21: RA-OTHER | B21: 182M | C21: OTHER | D21: ESD | E21: 0 | F21: 0 | G21: 0 | H21: 0 | I21: 0 | J21: 0
A22: RA-TROJD | B22: 182M | C22: TROJD | D22: P | E22: 0 | F22: 0 | G22: 0 | H22: 0 | I22: 0 | J22: 0
A23: RA-TROJP | B23: 182M | C23: TROJP | D23: P | E23: 0 | F23: 0 | G23: 0 | H23: 0 | I23: 0 | J23: 0
A24: RA-SITUS | B24: 182M | C24: SITUS | D24: DMSC | E24: 15.39565077 | F24: 0 | G24: 0 | H24: 0 | I24: 0 | J24: 15.39565077
A25: RA-SITUS | B25: 182M | C25: SITUS | D25: LABOR | E25: -1763.398053 | F25: -816.6184205 | G25: -138.9831735 | H25: -565.7530698 | I25: -242.0433893 | J25: 0
A26: RA-SITUS | B26: 182M | C26: SITUS | D26: P | E26: 33716.17302 | F26: 33716.17302 | G26: 0 | H26: 0 | I26: 0 | J26: 0
A27: RA-SITUS | B27: 182M | C27: SITUS | D27: PTD | E27: 13.2244 | F27: 6.528139123 | G27: 3.215132482 | H27: 3.481128395 | I27: 0 | J27: 0
A28: RA-SITUS | B28: 182M | C28: SITUS | D28: CUST | E28: 2003.549719 | F28: 0 | G28: 0 | H28: 0 | I28: 2003.549719 | J28: 0
B29: Total-SO | E29: =SUMIF($A:$A,"RA-SO",E:E) -> 494787.3642 | F29: 224581.2177 | G29: 39052.33027 | H29: 162240.889 | I29: 65057.16096 | J29: 3855.766192
B30: Total-OTHER | E30: =SUMIF($A:$A,"RA-OTHER",E:E) -> 173236.6039 | F30: 154797.5473 | G30: 295.498325 | H30: 561.1925735 | I30: 10900.98446 | J30: 6681.381231
B31: Total SITUS | E31: =SUMIF($A:$A,"RA-SITUS",E:E) -> 33984.94473 | F31: 32906.08274 | G31: -135.768041 | H31: -562.2719414 | I31: 1761.50633 | J31: 15.39565077
B32: Total RA | E32: =SUMIF($B:$B,"182M",E:E) -> 868843.2745 | F32: 579119.2094 | G32: 39212.06056 | H32: 162239.8097 | I32: 77719.65175 | J32: 10552.54307
B33: DDSO2 FACTOR | E33: =SUM(F33:J33) -> 1 | F33: =F29/$E29 -> 0.4538944079 | G33: =G29/$E29 -> 0.07892750119 | H33: =H29/$E29 -> 0.327900227 | I33: =I29/$E29 -> 0.1314850897 | J33: =J29/$E29 -> 0.007792774173
B34: DDS2 FACTOR | E34: =SUM(F34:J34) -> 1 | F34: =F31/$E31 -> 0.9682547079 | G34: =G31/$E31 -> -0.003994946647 | H34: =H31/$E31 -> -0.01654473608 | I34: =I31/$E31 -> 0.051831961 | J34: =J31/$E31 -> 0.0004530138533
A36: ="DD"&"-"&C36 -> DD-SE | B36: 186M | C36: SE | D36: P | E36: 5451.9044 | F36: =VLOOKUP($D36,$D$71:$J$83,3,FALSE)*$E36 -> 5451.9044 | G36: =VLOOKUP($D36,$D$71:$J$83,4,FALSE)*$E36 -> 0 | H36: =VLOOKUP($D36,$D$71:$J$83,5,FALSE)*$E36 -> 0 | I36: =VLOOKUP($D36,$D$71:$J$83,6,FALSE)*$E36 -> 0 | J36: =VLOOKUP($D36,$D$71:$J$83,7,FALSE)*$E36 -> 0
A37: DD-SG | B37: 186M | C37: SG | D37: P | E37: 47861.23889 | F37: =VLOOKUP($D37,$D$71:$J$83,3,FALSE)*$E37 -> 47861.23889 | G37: =VLOOKUP($D37,$D$71:$J$83,4,FALSE)*$E37 -> 0 | H37: =VLOOKUP($D37,$D$71:$J$83,5,FALSE)*$E37 -> 0 | I37: =VLOOKUP($D37,$D$71:$J$83,6,FALSE)*$E37 -> 0 | J37: =VLOOKUP($D37,$D$71:$J$83,7,FALSE)*$E37 -> 0
A38: DD-SG | B38: 186M | C38: SG | D38: T | E38: 13359.37738 | F38: =VLOOKUP($D38,$D$71:$J$83,3,FALSE)*$E38 -> 0 | G38: =VLOOKUP($D38,$D$71:$J$83,4,FALSE)*$E38 -> 13359.37738 | H38: =VLOOKUP($D38,$D$71:$J$83,5,FALSE)*$E38 -> 0 | I38: =VLOOKUP($D38,$D$71:$J$83,6,FALSE)*$E38 -> 0 | J38: =VLOOKUP($D38,$D$71:$J$83,7,FALSE)*$E38 -> 0
A39: DD-SO | B39: 186M | C39: SO | D39: DMSC | E39: 64.99658846 | F39: =VLOOKUP($D39,$D$71:$J$83,3,FALSE)*$E39 -> 0 | G39: =VLOOKUP($D39,$D$71:$J$83,4,FALSE)*$E39 -> 0 | H39: =VLOOKUP($D39,$D$71:$J$83,5,FALSE)*$E39 -> 0 | I39: =VLOOKUP($D39,$D$71:$J$83,6,FALSE)*$E39 -> 0 | J39: =VLOOKUP($D39,$D$71:$J$83,7,FALSE)*$E39 -> 64.99658846
A41: DD-OTHER | B41: 186M | C41: OTHER | D41: DMSC | E41: 2724.316979 | F41: =VLOOKUP($D41,$D$71:$J$83,3,FALSE)*$E41 -> 0 | G41: =VLOOKUP($D41,$D$71:$J$83,4,FALSE)*$E41 -> 0 | H41: =VLOOKUP($D41,$D$71:$J$83,5,FALSE)*$E41 -> 0 | I41: =VLOOKUP($D41,$D$71:$J$83,6,FALSE)*$E41 -> 0 | J41: =VLOOKUP($D41,$D$71:$J$83,7,FALSE)*$E41 -> 2724.316979
A42: DD-OTHER | B42: 186M | C42: OTHER | D42: LABOR | E42: 2977.516431 | F42: 1378.868918 | G42: 234.6745716 | H42: 955.2800958 | I42: 408.6928458 | J42: 0
A43: DD-OTHER | B43: 186M | C43: OTHER | D43: P | E43: 75.21196923 | F43: 75.21196923 | G43: 0 | H43: 0 | I43: 0 | J43: 0
A44: DD-OTHER | B44: 186M | C44: OTHER | D44: PTD | E44: 84.61841615 | F44: 41.77133125 | G44: 20.57253398 | H44: 22.27455092 | I44: 0 | J44: 0
A45: DD-OTHER | B45: 186M | C45: OTHER | D45: T | E45: 4311.930249 | F45: 0 | G45: 4311.930249 | H45: 0 | I45: 0 | J45: 0
A46: DD-SITUS | B46: 186M | C46: SITUS | D46: T | E46: 0 | F46: 0 | G46: 0 | H46: 0 | I46: 0 | J46: 0
A47: DD-SITUS | B47: 186M | C47: SITUS | D47: LABOR | E47: 0 | F47: 0 | G47: 0 | H47: 0 | I47: 0 | J47: 0
B48: Total SITUS | E48: =SUMIF($A:$A,"DD-SITUS",E:E) -> 0 | F48: 0 | G48: 0 | H48: 0 | I48: 0 | J48: 0
B49: Total SG | E49: =SUMIF($A:$A,"DD-SG",E:E) -> 61220.61627 | F49: 47861.23889 | G49: 13359.37738 | H49: 0 | I49: 0 | J49: 0
B50: Total-SO | E50: =SUMIF($A:$A,"DD-SO",E:E) -> 64.99658846 | F50: 0 | G50: 0 | H50: 0 | I50: 0 | J50: 64.99658846
B51: Total-DD | E51: =SUMIF($B:$B,"186M",E:E) -> 76911.1113 | F51: 54808.9955 | G51: 17926.55474 | H51: 977.5546467 | I51: 408.6928458 | J51: 2789.313568
B52: DDS6 FACTOR | E52: =SUM(F52:J52) -> 0 | F52: =IFERROR(F48/$E48,0) -> 0 | G52: =IFERROR(G48/$E48,0) -> 0 | H52: 0 | I52: 0 | J52: 0
B53: DEFSG FACTOR | E53: =SUM(F53:J53) -> 1 | F53: =F49/$E49 -> 0.78178303 | G53: 0.21821697 | H53: 0 | I53: 0 | J53: 0
B54: DDSO6 FACTOR | E54: =SUM(F54:J54) -> 1 | F54: =IFERROR(F50/$E50,0) -> 0 | G54: =IFERROR(G50/$E50,0) -> 0 | H54: 0 | I54: 0 | J54: 1
B56: Major Adjustment
B57: 1998 Early Retirement | D57: LABOR | E57: 0 | F57: =VLOOKUP($D57,$D$71:$J$83,3,FALSE)*$E57 -> 0 | G57: =VLOOKUP($D57,$D$71:$J$83,4,FALSE)*$E57 -> 0 | H57: =VLOOKUP($D57,$D$71:$J$83,5,FALSE)*$E57 -> 0 | I57: =VLOOKUP($D57,$D$71:$J$83,6,FALSE)*$E57 -> 0 | J57: =VLOOKUP($D57,$D$71:$J$83,7,FALSE)*$E57 -> 0
B58: 1999 Early Retirement | D58: LABOR | E58: 0 | F58: =VLOOKUP($D58,$D$71:$J$83,3,FALSE)*$E58 -> 0 | G58: =VLOOKUP($D58,$D$71:$J$83,4,FALSE)*$E58 -> 0 | H58: =VLOOKUP($D58,$D$71:$J$83,5,FALSE)*$E58 -> 0 | I58: =VLOOKUP($D58,$D$71:$J$83,6,FALSE)*$E58 -> 0 | J58: =VLOOKUP($D58,$D$71:$J$83,7,FALSE)*$E58 -> 0
B59: Transition Planning | D59: PTD | E59: 0 | F59: =VLOOKUP($D59,$D$71:$J$83,3,FALSE)*$E59 -> 0 | G59: =VLOOKUP($D59,$D$71:$J$83,4,FALSE)*$E59 -> 0 | H59: =VLOOKUP($D59,$D$71:$J$83,5,FALSE)*$E59 -> 0 | I59: =VLOOKUP($D59,$D$71:$J$83,6,FALSE)*$E59 -> 0 | J59: =VLOOKUP($D59,$D$71:$J$83,7,FALSE)*$E59 -> 0
B60: Environmental Clean-up | D60: ESD | E60: 0 | F60: =VLOOKUP($D60,$D$71:$J$83,3,FALSE)*$E60 -> 0 | G60: =VLOOKUP($D60,$D$71:$J$83,4,FALSE)*$E60 -> 0 | H60: =VLOOKUP($D60,$D$71:$J$83,5,FALSE)*$E60 -> 0 | I60: =VLOOKUP($D60,$D$71:$J$83,6,FALSE)*$E60 -> 0 | J60: =VLOOKUP($D60,$D$71:$J$83,7,FALSE)*$E60 -> 0
B61: Y2K | D61: PTD | E61: 0 | F61: =VLOOKUP($D61,$D$71:$J$83,3,FALSE)*$E61 -> 0 | G61: =VLOOKUP($D61,$D$71:$J$83,4,FALSE)*$E61 -> 0 | H61: =VLOOKUP($D61,$D$71:$J$83,5,FALSE)*$E61 -> 0 | I61: =VLOOKUP($D61,$D$71:$J$83,6,FALSE)*$E61 -> 0 | J61: =VLOOKUP($D61,$D$71:$J$83,7,FALSE)*$E61 -> 0
B62: Subtotal Major Adjustments | E62: =SUM(E57:E61) -> 0 | F62: 0 | G62: 0 | H62: 0 | I62: 0 | J62: 0
B64: Total 186M SO | E64: =+E50+E62 -> 64.99658846 | F64: 0 | G64: 0 | H64: 0 | I64: 0 | J64: 64.99658846
B66: Total 182 &186 | E66: =SUM(E51,E32) -> 945754.3858 | F66: =SUM(F32,F51) -> 633928.2049 | G66: =SUM(G32,G51) -> 57138.6153 | H66: =SUM(H32,H51) -> 163217.3643 | I66: =SUM(I32,I51) -> 78128.3446 | J66: =SUM(J32,J51) -> 13341.85664
E70: Total | F70: Production | G70: Transmission | H70: Poles & Wires | I70: Customers | J70: Miscellaneous
D71: DMSC | E71: =SUM(F71:J71) -> 1 | F71: 0 | G71: 0 | H71: 0 | I71: 0 | J71: 1
D72: DPW | E72: =SUM(F72:J72) -> 1 | F72: 0 | G72: 0 | H72: 1 | I72: 0 | J72: 0
D73: CUST | E73: 1 | F73: 0 | G73: 0 | H73: 0 | I73: 1 | J73: 0
D74: ESD | E74: 1 | F74: 0.3 | G74: 0.1 | H74: 0.6 | I74: 0 | J74: 0
D75: GP | E75: 1 | F75: ='GROSS PLANT'!$E$42 -> 0.4878398213 | G75: ='GROSS PLANT'!$F$42 -> 0.243076422 | H75: ='GROSS PLANT'!$G$42 -> 0.2632084635 | I75: ='GROSS PLANT'!$H$42 -> 0.005875293149 | J75: ='GROSS PLANT'!$I$42 -> 0
D76: RETAIL | E76: 1 | F76: 0 | G76: 0 | H76: 0 | I76: 1 | J76: 0
D77: LABOR | E77: 1 | F77: ='FORM 1'!$C$25 -> 0.4630936385 | G77: ='FORM 1'!$D$25 -> 0.0788155421 | H77: ='FORM 1'!$E$25 -> 0.3208311752 | I77: ='FORM 1'!$F$25 -> 0.1372596442 | J77: ='FORM 1'!$G$25 -> 0
D78: P | E78: 1 | F78: ='FORM 1'!$C$13 -> 1 | G78: ='FORM 1'!$D$13 -> 0 | H78: ='FORM 1'!$E$13 -> 0 | I78: ='FORM 1'!$F$13 -> 0 | J78: ='FORM 1'!$G$13 -> 0
D79: PT | E79: =SUM(F79:J79) -> 1 | F79: ='FORM 1'!$C$17 -> 0.6700151025 | G79: ='FORM 1'!$D$17 -> 0.3299848975 | H79: ='FORM 1'!$E$17 -> 0 | I79: ='FORM 1'!$F$17 -> 0 | J79: ='FORM 1'!$G$17 -> 0
D80: PTD | E80: 1 | F80: ='FORM 1'!$C$16 -> 0.4936435016 | G80: ='FORM 1'!$D$16 -> 0.2431212366 | H80: ='FORM 1'!$E$16 -> 0.2632352617 | I80: ='FORM 1'!$F$16 -> 0 | J80: ='FORM 1'!$G$16 -> 0
D81: T | E81: 1 | F81: ='FORM 1'!$C$14 -> 0 | G81: ='FORM 1'!$D$14 -> 1 | H81: ='FORM 1'!$E$14 -> 0 | I81: ='FORM 1'!$F$14 -> 0 | J81: ='FORM 1'!$G$14 -> 0
D82: TAXDEPR | E82: 1 | F82: ='TAX DEPR'!C24 -> 0.3770380522 | G82: ='TAX DEPR'!D24 -> 0.3617677382 | H82: ='TAX DEPR'!E24 -> 0.2559385071 | I82: ='TAX DEPR'!F24 -> 0.00525570255 | J82: ='TAX DEPR'!G24 -> 0
D83: TD | E83: 1 | F83: ='FORM 1'!$C$18 -> 0 | G83: ='FORM 1'!$D$18 -> 0.4801384744 | H83: ='FORM 1'!$E$18 -> 0.5198615256 | I83: ='FORM 1'!$F$18 -> 0 | J83: ='FORM 1'!$G$18 -> 0

Sheet ACCUMDIT
A1: =+'TOTAL FUNCFAC'!A1 -> PacifiCorp
A2: =+'TOTAL FUNCFAC'!A2 -> 12 Months Ended December 2015
A3: Deferred Income Tax - Balance
A7: DITBALRL
A8: Pacific Division | C8: Total | D8: Production | E8: Transmission | F8: DPW | G8: CUST | H8: DMSC
A9: Pacific Division
A10: Production | B10: P | C10: 42724405 | D10: =VLOOKUP($B10,$B$59:$H$72,3,FALSE)*$C10 -> 42724405 | E10: =VLOOKUP($B10,$B$59:$H$72,4,FALSE)*$C10 -> 0 | F10: =VLOOKUP($B10,$B$59:$H$72,5,FALSE)*$C10 -> 0 | G10: =VLOOKUP($B10,$B$59:$H$72,6,FALSE)*$C10 -> 0 | H10: =VLOOKUP($B10,$B$59:$H$72,7,FALSE)*$C10 -> 0
A11: Transmission | B11: T | C11: 17577756 | D11: =VLOOKUP($B11,$B$59:$H$72,3,FALSE)*$C11 -> 0 | E11: =VLOOKUP($B11,$B$59:$H$72,4,FALSE)*$C11 -> 17577756 | F11: =VLOOKUP($B11,$B$59:$H$72,5,FALSE)*$C11 -> 0 | G11: =VLOOKUP($B11,$B$59:$H$72,6,FALSE)*$C11 -> 0 | H11: =VLOOKUP($B11,$B$59:$H$72,7,FALSE)*$C11 -> 0
A12: Distribution | B12: DPW | C12: 20834796 | D12: =VLOOKUP($B12,$B$59:$H$72,3,FALSE)*$C12 -> 0 | E12: =VLOOKUP($B12,$B$59:$H$72,4,FALSE)*$C12 -> 0 | F12: =VLOOKUP($B12,$B$59:$H$72,5,FALSE)*$C12 -> 20834796 | G12: =VLOOKUP($B12,$B$59:$H$72,6,FALSE)*$C12 -> 0 | H12: =VLOOKUP($B12,$B$59:$H$72,7,FALSE)*$C12 -> 0
A13: General | B13: G | C13: -340826 | D13: =VLOOKUP($B13,$B$59:$H$72,3,FALSE)*$C13 -> -75112.36033 | E13: =VLOOKUP($B13,$B$59:$H$72,4,FALSE)*$C13 -> -115878.6284 | F13: =VLOOKUP($B13,$B$59:$H$72,5,FALSE)*$C13 -> -143963.8702 | G13: =VLOOKUP($B13,$B$59:$H$72,6,FALSE)*$C13 -> -5871.141135 | H13: =VLOOKUP($B13,$B$59:$H$72,7,FALSE)*$C13 -> 0
A14: Mining Plant | B14: P | C14: 3474 | D14: =VLOOKUP($B14,$B$59:$H$72,3,FALSE)*$C14 -> 3474 | E14: =VLOOKUP($B14,$B$59:$H$72,4,FALSE)*$C14 -> 0 | F14: =VLOOKUP($B14,$B$59:$H$72,5,FALSE)*$C14 -> 0 | G14: =VLOOKUP($B14,$B$59:$H$72,6,FALSE)*$C14 -> 0 | H14: =VLOOKUP($B14,$B$59:$H$72,7,FALSE)*$C14 -> 0
A16: Total Pacific Division | C16: =SUM(C10:C14) -> 80799605 | D16: =SUM(D10:D14) -> 42652766.64 | E16: 17461877.37 | F16: 20690832.13 | G16: -5871.141135 | H16: 0
A18: Utah Division
A19: Production | B19: P | C19: 65261524 | D19: =VLOOKUP($B19,$B$59:$H$72,3,FALSE)*$C19 -> 65261524 | E19: =VLOOKUP($B19,$B$59:$H$72,4,FALSE)*$C19 -> 0 | F19: =VLOOKUP($B19,$B$59:$H$72,5,FALSE)*$C19 -> 0 | G19: =VLOOKUP($B19,$B$59:$H$72,6,FALSE)*$C19 -> 0 | H19: =VLOOKUP($B19,$B$59:$H$72,7,FALSE)*$C19 -> 0
A20: Transmission | B20: T | C20: 41175577 | D20: 0 | E20: 41175577 | F20: 0 | G20: 0 | H20: 0
A21: Distribution | B21: DPW | C21: 30022827 | D21: 0 | E21: 0 | F21: 30022827 | G21: 0 | H21: 0
A22: General | B22: G | C22: -717525 | D22: -158130.531 | E22: -243953.844 | F22: -303080.3869 | G22: -12360.23819 | H22: 0
A23: Mining Plant | B23: P | C23: 8895 | D23: 8895 | E23: 0 | F23: 0 | G23: 0 | H23: 0
A25: Total Utah Division | C25: =SUM(C19:C23) -> 135751298 | D25: =SUM(D19:D23) -> 65112288.47 | E25: 40931623.16 | F25: 29719746.61 | G25: -12360.23819 | H25: 0
A27: PACIFICORP
A28: Prod / Other Prod | B28: P | C28: 479644261 | D28: =VLOOKUP($B28,$B$59:$H$72,3,FALSE)*$C28 -> 479644261 | E28: =VLOOKUP($B28,$B$59:$H$72,4,FALSE)*$C28 -> 0 | F28: =VLOOKUP($B28,$B$59:$H$72,5,FALSE)*$C28 -> 0 | G28: =VLOOKUP($B28,$B$59:$H$72,6,FALSE)*$C28 -> 0 | H28: =VLOOKUP($B28,$B$59:$H$72,7,FALSE)*$C28 -> 0
A29: Cholla Unit 4 | B29: P | C29: 30793696 | D29: 30793696 | E29: 0 | F29: 0 | G29: 0 | H29: 0
A30: Gadsby Unit 4, 5 & 6 | B30: P | C30: 5816168 | D30: 5816168 | E30: 0 | F30: 0 | G30: 0 | H30: 0
A31: Hydro-PPL | B31: P | C31: 39398249 | D31: 39398249 | E31: 0 | F31: 0 | G31: 0 | H31: 0
A32: Hydro-UPL | B32: P | C32: 12101337 | D32: 12101337 | E32: 0 | F32: 0 | G32: 0 | H32: 0
A33: Transmission | B33: T | C33: 272129805 | D33: 0 | E33: 272129805 | F33: 0 | G33: 0 | H33: 0
A34: Distribution | B34: DPW | C34: 875230929 | D34: 0 | E34: 0 | F34: 875230929 | G34: 0 | H34: 0
A35: General/ Intangibles | B35: G | C35: 75274365 | D35: 16589213.35 | E35: 25592795.64 | F35: 31795663.8 | G35: 1296692.215 | H35: 0
A36: Mining | B36: P | C36: -3024872 | D36: -3024872 | E36: 0 | F36: 0 | G36: 0 | H36: 0
A37: WCA - CAEE 2007+ | B37: P | C37: 2055850 | D37: 2055850 | E37: 0 | F37: 0 | G37: 0 | H37: 0
A38: WCA - CAGE 2007+ | B38: PT | C38: 1716595647 | D38: 1150145008 | E38: 566450638.6 | F38: 0 | G38: 0 | H38: 0
A39: WCA - CAGW 2007+ | B39: PT | C39: 402197223 | D39: 269478213.6 | E39: 132719009.4 | F39: 0 | G39: 0 | H39: 0
A40: WCA_CAGW 2007+ -Marengo | B40: P | C40: 0 | D40: 0 | E40: 0 | F40: 0 | G40: 0 | H40: 0
A41: WCA CAGW 2007+ -Goodnoe | B41: P | C41: 0 | D41: 0 | E41: 0 | F41: 0 | G41: 0 | H41: 0
A42: WCA - General 2007+ | B42: G | C42: 153090545 | D42: 33738600.28 | E42: 52049791.89 | F42: 64664982.55 | G42: 2637170.275 | H42: 0
A43: WCA - JBG 2007+ | B43: P | C43: 116578868 | D43: 116578868 | E43: 0 | F43: 0 | G43: 0 | H43: 0
A44: OREGON EXTRA BOOK DEPR | B44: P | C44: -46752810 | D44: -46752810 | E44: 0 | F44: 0 | G44: 0 | H44: 0
A46: Total PC (Post Merger) | C46: =SUM(C28:C44) -> 4131129261 | D46: =SUM(D28:D44) -> 2106561783 | E46: 1048942041 | F46: 971691575.4 | G46: 3933862.49 | H46: 0
A48: Total Deferred Taxes | C48: =C16+C25+C46 -> 4347680164 | D48: =D16+D25+D46 -> 2214326838 | E48: 1107335541 | F48: 1022102154 | G48: 3915631.11 | H48: 0
A50: ACCMDITRL FACTOR | C50: 1 | D50: =D48/$C$48 -> 0.5093122663 | E50: =E48/$C$48 -> 0.2546957226 | F50: 0.2350913856 | G50: 0.0009006253824 | H50: 0
B54: ACCUMDIT | C54: =SUM(D54:F54) -> 0.4091663971 | D54: 0.09962591977 | E54: 0.3095404773 | F54: 0
C58: Total | D58: Production | E58: Transmission | F58: Poles & Wires | G58: Customers | H58: Miscellaneous
B59: DMSC | C59: =SUM(D59:H59) -> 1 | D59: 0 | E59: 0 | F59: 0 | G59: 0 | H59: 1
B60: DPW | C60: =SUM(D60:H60) -> 1 | D60: 0 | E60: 0 | F60: 1 | G60: 0 | H60: 0
B61: DDS2 | C61: 1 | D61: =DDS!F34 -> 0.9682547079 | E61: =DDS!G34 -> -0.003994946647 | F61: =DDS!H34 -> -0.01654473608 | G61: =DDS!I34 -> 0.051831961 | H61: =DDS!J34 -> 0.0004530138533
B62: CUST | C62: 1 | D62: 0 | E62: 0 | F62: 0 | G62: 1 | H62: 0
B63: ESD | C63: 1 | D63: 0.3 | E63: 0.1 | F63: 0.6 | G63: 0 | H63: 0
B64: G | C64: =SUM(D64:H64) -> 1 | D64: ='GENERAL PLANT'!E38 -> 0.2203833051 | E64: ='GENERAL PLANT'!F38 -> 0.339993511 | F64: ='GENERAL PLANT'!G38 -> 0.4223969714 | G64: ='GENERAL PLANT'!H38 -> 0.0172262126 | H64: ='GENERAL PLANT'!I38 -> 0
B65: GP | C65: 1 | D65: ='GROSS PLANT'!E42 -> 0.4878398213 | E65: ='GROSS PLANT'!F42 -> 0.243076422 | F65: ='GROSS PLANT'!G42 -> 0.2632084635 | G65: ='GROSS PLANT'!H42 -> 0.005875293149 | H65: ='GROSS PLANT'!I42 -> 0
B66: LABOR | C66: 1 | D66: ='FORM 1'!C25 -> 0.4630936385 | E66: ='FORM 1'!D25 -> 0.0788155421 | F66: ='FORM 1'!E25 -> 0.3208311752 | G66: ='FORM 1'!F25 -> 0.1372596442 | H66: ='FORM 1'!G25 -> 0
B67: P | C67: 1 | D67: 1 | E67: 0 | F67: 0 | G67: 0 | H67: 0
B68: PT | C68: =SUM(D68:H68) -> 1 | D68: =+'FORM 1'!C17 -> 0.6700151025 | E68: =+'FORM 1'!D17 -> 0.3299848975 | F68: =+'FORM 1'!E17 -> 0 | G68: =+'FORM 1'!F17 -> 0 | H68: =+'FORM 1'!G17 -> 0
B69: PTD | C69: 1 | D69: ='FORM 1'!C16 -> 0.4936435016 | E69: ='FORM 1'!D16 -> 0.2431212366 | F69: ='FORM 1'!E16 -> 0.2632352617 | G69: ='FORM 1'!F16 -> 0 | H69: ='FORM 1'!G16 -> 0
B70: T | C70: 1 | D70: 0 | E70: 1 | F70: 0 | G70: 0 | H70: 0
B71: TAXDEPR | C71: 1 | D71: ='TAX DEPR'!C24 -> 0.3770380522 | E71: ='TAX DEPR'!D24 -> 0.3617677382 | F71: ='TAX DEPR'!E24 -> 0.2559385071 | G71: ='TAX DEPR'!F24 -> 0.00525570255 | H71: ='TAX DEPR'!G24 -> 0
B72: TD | C72: 1 | D72: ='FORM 1'!C18 -> 0 | E72: ='FORM 1'!D18 -> 0.4801384744 | F72: ='FORM 1'!E18 -> 0.5198615256 | G72: ='FORM 1'!F18 -> 0 | H72: ='FORM 1'!G18 -> 0
